Workbook

Sheet Info
A2: =Prüfung!B2 -> naturemade Star Prüfung: Energieprodukte aus Holzenergieanlagen
A3: Kenngrössenmodell erstellt durch Niels Jungbluth, ESU-services GmbH
A5: Anleitung
A6: Alle weissen Felder im Blatt „Prüfung“ müssen ausgefüllt werden. Bei Eingabe einer Null erscheint die für die Eingabe geforderte Einheit. Bestehende Formeln in weissen Zellen können mit direkten Eingaben oder eigenen Formeln ersetzt werden. Farbige Zellen dürfen nicht verändert werden. Aus den Drop-Down Menüs müssen die passenden Anlagenspezifikationen ausgewählt werden.
A7: Die automatische Berechnung in Excel muss eingeschaltet sein (/Extras/Optionen/Berechnung --> automatisch) oder man kann mit [F9] Taste jeweils neu berechnen lassen.
A8: Alle Angaben müssen für einen einheitlich Zeitraum (in der Regel ein Jahr) eingegeben werden.
A9: In der Spalte "Prüfungen" im Blatt Prüfungen werden spezielle Aspekte der Eingabe kontrolliert. Durch anklicken eines Kästchens wird im Kommentarfeld die Frage der Prüfung angegeben.
A10: ORC - Organic Ranking Cycle
A11: Die Berechnungen für Holzvergasungsanlagen beruhen auf Planungswerten. Somit ist nur eine vorläufige Zertifizierung möglich. Das Modell muss noch mit tatsächlichen Betriebsdaten aufdatiert werden, sobald diese zur Verfügung stehen.
A13: Default Werte für die Eingabe der relativen Feuchte im Blatt Prüfung, Spalte D
A14: Für die Angabe der relativen Feuchte (W) sollen nach Möglichkeit gemessene Werte eingesetzt werden. Stehen diese nicht zur Verfügung, so können folgende Standardwerte verwendet werden. | B14: relative Feuchte (W)
A15: Holzschnitzel, Frischholz (Laubbaum) | B15: =TRANSPOSE(LCIA!C15:G15) -> 0.4444444444
A16: Holzschnitzel, Frischholz (Nadelbaum) | B16: 0.5833333333
A17: Holzschnitzel, Restholz (z.B. aus Sägerei) | B17: 0.2857142857
A18: Holzpellets | B18: 0.09090909091
A19: Holzschnitzel, Altholz | B19: 0.2857142857
A20: Falls nur bekannt ist, ob es sich um "grüne", "halbgrüne" oder "trockene" Schnitzel handelt, können auch folgende Werte verwendet werden. Bitte schätzen Sie dann ab, zu welchen Anteilen es sich um Laub-, Nadel- oder Restholz handelt und tragen diese in die entsprechenden Zeilen ein.
A21: Schnitzel grün | B21: 0.5
A22: Schnitzel halbgrün | B22: 0.3
A23: Schnitzel trocken | B23: 0.2
A25: Systemgrenzen
A26: Für die Berechnung des Energieeigenverbrauchs und für die Grenzen der Ökobilanzierung sind die Systemgrenzen gemäss Hintergrundbericht zu beachten. Grundsätzlich erfolgen die Eingaben aus Sicht des Anlagenbetreibers und seinem wirtschaftlichen Entscheidungsbereich. Bei den Transporten müssen alle Transporte von der Schnitzelherstellung bis zur Anlage berücksichtigt werden. Bei Importen per Schiff bzw. Bahn müssen auch Lkw Transporte im Herkunftsland mit erfasst werden.
A28: Umweltdeklaration
A29: Die Umweltdeklaration weisst die Umweltbelastungen grob aus. Unterschiede bei Vergleichen von weniger als 10% sind in der Regel nicht relevant.
A31: Rückfragen
A32: Bei Fragen zum Modell sollte zunächst der vollständige Hintergrundbericht angeschaut werden. Jungbluth N. (2019) Handbuch für die naturemade Kennwertmodelle: Ökobilanzen für die Prüfung des globalen Kriteriums. ESU-services im Auftrag vom Verein für umweltgerechte Energie (VUE), Schaffhausen.
A33: http://www.esu-services.ch/projects/naturemade/
A34: Für Fragen und Rückmeldungen ist die naturemade Geschäftsstelle zuständig. Bitte schicken Sie hierzu die ausgefüllte Excel-Tabelle, abgespeichert unter neuem Namen unter Beibehaltung der Versionennummer an folgende Adresse:
A36: Verein für umweltgerechte Energie (VUE), naturemade Geschäftsstelle
A37: Molkenstrasse 21
A38: 8004 Zürich
A39: T: +41 44 213 10 21
A40: www.naturemade.ch
A41: valentin.graf@naturemade.ch
A43: Entwicklung und Auftragnehmer
A44: © ESU-services GmbH, Version 2021-4.3
A45: Vorstadt 14
A46: CH-8200 Schaffhausen
A47: T. +41 44 940 61 32
A48: jungbluth@esu-services.ch
A49: http://www.esu-services.ch/projects/naturemade/
A51: Version zuletzt überarbeitet im September 2020 durch nj
A52: Eco-indicator v2.10 und ecoinvent ESU-database 2019
A54: 13.1.2021 - Korrektur Übersetzung
A55: 24.9.2020 - Korrektur der Formel für Wirkungsgrad Überprüfung I39
A56: 30.10.2019 - Neuberechnung der Ökobilanzhintergrunddaten für alle 4 Indikatoren

Sheet Prüfung
C1: 41 | D1: 42 | F1: 44 | G1: 72 | H1: 73
A2: 2 | B2: =INDEX(menues!$1:$1048576,$A2,sprache) -> naturemade Star Prüfung: Energieprodukte aus Holzenergieanlagen | I2: Prüfungen
A3: 3 | B3: =INDEX(menues!$1:$1048576,$A3,sprache) -> Eingabe: | J3: 1
A4: 4 | B4: =INDEX(menues!$1:$1048576,$A4,sprache) -> Anlagenname und Referenzzeitraum | C4: Beispielanlage
A5: 6 | B5: =INDEX(menues!$1:$1048576,$A5,sprache) -> Anlagentyp | I5: =NOT(AND(Anlagentyp=1,C32>0)) -> TRUE | J5: 2
A6: 7 | B6: =INDEX(menues!$1:$1048576,$A6,sprache) -> Inputs | C6: =INDEX(menues!$1:$1048576,$C1,sprache) -> Schütt-kubikmeter | D6: =INDEX(menues!$1:$1048576,D1,sprache) -> relative Feuchte (W) | E6: atro | F6: =INDEX(menues!$1:$1048576,$F1,sprache) -> Mittlere einfache Transportentfernung, Lkw | G6: =INDEX(menues!$1:$1048576,$G1,sprache) -> Mittlere einfache Transportentfernung, Bahn | H6: =INDEX(menues!$1:$1048576,$H1,sprache) -> Mittlere einfache Transportentfernung, Schiff
A7: 75 | B7: =INDEX(menues!$1:$1048576,$A7,sprache) -> Holzschnitzel, Laubbaum | C7: 0 | D7: 0.45 | E7: =TRANSPOSE(LCIA!C17:G17) -> 0 | F7: 0 | G7: 0 | H7: 0
A8: 76 | B8: =INDEX(menues!$1:$1048576,$A8,sprache) -> Holzschnitzel, Nadelbaum | C8: 0 | D8: 0.45 | E8: 0 | F8: 0 | G8: 0 | H8: 0 | N8: =name -> Beispielanlage | O8: =Umweltdeklaration!B11 -> Prüfwert
A9: 77 | B9: =INDEX(menues!$1:$1048576,$A9,sprache) -> Holzschnitzel, Restholz (z.B. aus Sägerei) | C9: 0 | D9: 0.2857142857 | E9: 0 | F9: 0 | G9: 0 | H9: 0 | M9: =Umweltdeklaration!B4 -> eingekaufte Substrate | N9: =Umweltdeklaration!H4 -> 0
A10: 74 | B10: =INDEX(menues!$1:$1048576,$A10,sprache) -> Holzpellets | C10: 0 | D10: 0.09090909091 | E10: 0 | F10: 0 | G10: 0 | H10: 0 | M10: =Umweltdeklaration!B5 -> Fremdenergiebedarf | N10: =Umweltdeklaration!H5 -> 0
A11: 78 | B11: =INDEX(menues!$1:$1048576,$A11,sprache) -> Holzschnitzel, Altholz | C11: 0 | D11: 0.2857142857 | E11: 0 | F11: 0 | G11: 0 | H11: 0 | M11: =Umweltdeklaration!B5 -> Fremdenergiebedarf | N11: =Umweltdeklaration!H5 -> 0
A12: 80 | B12: =INDEX(menues!$1:$1048576,$A12,sprache) -> Holzmenge | C12: =SUM(C7:C11) -> 0 | E12: =SUM(E7:E11) -> 0 | J12: =C11>0 -> FALSE | M12: =Umweltdeklaration!B6 -> Transporte | N12: =Umweltdeklaration!H6 -> 0
A13: 23 | B13: =INDEX(menues!$1:$1048576,$A13,sprache) -> Rapsölmethylester | C13: 0 | E13: =C13 -> 0 | F13: 0 | G13: 0 | H13: 0
A14: 21 | B14: =INDEX(menues!$1:$1048576,$A14,sprache) -> Gesamtinputmenge für Anlage | C14: =SUM(LCIA!C19:H19) -> 0 | D14: =C14/SUM(LCIA!C18:G18) ->  | E14: =C14/C12 ->  | F14: =LCIA!M6 -> 0 | G14: =LCIA!N6 -> 0 | H14: =LCIA!O6 -> 0 | I14: =C14>0 -> FALSE | M14: =Umweltdeklaration!B7 -> Verbrennung, Verteilung | N14: =Umweltdeklaration!H7 -> 0
A15: 93 | B15: =INDEX(menues!$1:$1048576,$A15,sprache) -> Energiebezug der Anlage (Systemgrenzen beachten) | C15: =SUM(C16:C19) -> 0 | M15: =Umweltdeklaration!B8 -> Aschen zur Entsorgung | N15: =Umweltdeklaration!H8 -> 0
A16: 9 | B16: =INDEX(menues!$1:$1048576,$A16,sprache) -> Strombezug aus Netz | C16: 0 | I16: =IF(AND(C34>0,C16>0),FALSE,TRUE) -> TRUE | M16: =Umweltdeklaration!B13 -> Grenzwert Strom | O16: =Umweltdeklaration!D13 -> 0
A17: 10 | B17: =INDEX(menues!$1:$1048576,$A17,sprache) -> Heizölverbrauch | C17: 0 | M17: =Umweltdeklaration!B14 -> Grenzwert Wärme | O17: =Umweltdeklaration!D14 -> 0
A18: 87 | B18: =INDEX(menues!$1:$1048576,$A18,sprache) -> Dieselverbrauch (10 kWh/Liter) | C18: 0 | M18: =Umweltdeklaration!B15 -> Grenzwert Methan | O18: =Umweltdeklaration!D15 -> 0
A19: 18 | B19: =INDEX(menues!$1:$1048576,$A19,sprache) -> Erdgasverbrauch | C19: 0 | N19: =SUM(N9:N18) -> 0 | O19: =SUM(O9:O18) -> 0
A20: 28 | B20: =INDEX(menues!$1:$1048576,$A20,sprache) -> Luftemissionen im trockn. Abgas bez. auf 11%/13% O2 / Feuerungswärmeleistung | E20: =Nm3_Abgas -> 0 | I20: =Anlagengrösse>1 -> TRUE | J20: 4
A21: 81 | B21: =INDEX(menues!$1:$1048576,$A21,sprache) -> Stickoxide NOx als NO2 / Emissionsgrenzwerte gemäss LRV | C21: 250 | E21: =OFFSET(LRV!$A$1,2,Anlagengrösse+1) -> 250 | I21: =AND(0<C21,C21<=E21) -> TRUE
A22: 82 | B22: =INDEX(menues!$1:$1048576,$A22,sprache) -> Staub (= Feststoffe), PM10 / Emissionsgrenzwerte gemäss LRV | C22: 20 | E22: =OFFSET(LRV!$A$1,3,Anlagengrösse+1) -> 20 | I22: =AND(0<C22,C22<=E22) -> TRUE
A23: 83 | B23: =IF(altholzverbrennung,INDEX(menues!$1:$1048576,$A23,sprache),"-") -> - | C23: 0 | E23: =IF(altholzverbrennung,J23,"-") -> - | I23: =IF(altholzverbrennung,AND(0<C23,C23<=E23),TRUE) -> TRUE | J23: 1
A24: 84 | B24: =IF(altholzverbrennung,INDEX(menues!$1:$1048576,$A24,sprache),"-") -> - | C24: 0 | E24: =IF(altholzverbrennung,J24,"-") -> - | I24: =IF(altholzverbrennung,AND(0<C24,C24<=E24),TRUE) -> TRUE | J24: 0.1
A25: 85 | B25: =IF(altholzverbrennung,INDEX(menues!$1:$1048576,$A25,sprache),"-") -> - | C25: 0 | E25: =IF(altholzverbrennung,J25,"-") -> - | I25: =IF(altholzverbrennung,AND(0<C25,C25<=E25),TRUE) -> TRUE | J25: 1
A26: 11 | B26: =INDEX(menues!$1:$1048576,$A26,sprache) -> Outputs der Anlage
A27: 12 | B27: =INDEX(menues!$1:$1048576,$A27,sprache) -> Gesamtproduktion Biomethan, Brutto (12.7 kWh/kg) | C27: 0
A28: 24 | B28: =INDEX(menues!$1:$1048576,$A28,sprache) -> ungewollte Biogas Verluste (Methanschlupf und Unterbrüche) | C28: 0
A29: 16 | B29: =INDEX(menues!$1:$1048576,$A29,sprache) -> Biomethan: Verkauf und Verbrauch ausserhalb der Anlage | C29: 0 | E29: =C29/12.7/1000 -> 0 | I29: =IF(C29>0,IF(Anlagentyp=5,TRUE,FALSE),TRUE) -> TRUE
A30: 13 | B30: =INDEX(menues!$1:$1048576,$A30,sprache) -> Biomethan verbrannt in Fackel, Heizung, BHKW | C30: =C27-C28-C29 -> 0
A31: 55 | B31: =INDEX(menues!$1:$1048576,$A31,sprache) -> Total Biomethannutzung, Brutto | C31: =C30+C28+C29 -> 0 | I31: =C31<=C27 -> TRUE
A32: 99 | B32: =INDEX(menues!$1:$1048576,$A32,sprache) -> Gesamtproduktion Strom, Brutto | C32: 0
A33: 100 | B33: =INDEX(menues!$1:$1048576,$A33,sprache) -> Eigenverbrauch der Anlage | C33: 0
A34: 14 | B34: =INDEX(menues!$1:$1048576,$A34,sprache) -> Strom: Verkauf und Verbrauch ausserhalb der Anlage | C34: 0 | E34: =C34/$C$14 ->  | I34: =C34<=(C32-C33) -> TRUE
A35: 32 | B35: =INDEX(menues!$1:$1048576,$A35,sprache) -> Einspeisung Wärmeverbund / Verteilverluste | C35: 0 | D35: 0.203 | E35: =C35/C14 ->  | I35: =D35<J35 -> FALSE | J35: 0.2
A36: 43 | B36: =INDEX(menues!$1:$1048576,$A36,sprache) -> Nahwärmenutzung: Verkauf, Verbrauch im Gebäudekomplex | C36: 0 | I36: =SUM(C34:C36,C29)<C14 -> FALSE
A37: 62 | B37: =INDEX(menues!$1:$1048576,$A37,sprache) -> Total Wärmeverkauf (nach Abzug Verteilverluste) | C37: =C36+C35*(1-D35) -> 0 | E37: =C37/C14 -> 
A38: 102 | B38: =INDEX(menues!$1:$1048576,$A38,sprache) -> Gesamtmenge Energieprodukte | C38: =C37+C29+C34 -> 0 | I38: =C39<1 -> 
A39: 40 | B39: =INDEX(menues!$1:$1048576,$A39,sprache) -> energetischer Wirkungsgrad | C39: =C38/C14 ->  | I39: =E37>=WärmeMax-(WärmeMax-WärmeMin)/StromMax*E34 ->  | J39: =IF(Anlagentyp=1,75%,60%) -> 0.6
A40: 30 | B40: =INDEX(menues!$1:$1048576,$A40,sprache) -> Einfache Distanz Anlage - Ausbringung/Entsorgung | F40: =SUMPRODUCT(D41,F41) -> 0
A41: 64 | B41: =INDEX(menues!$1:$1048576,$A41,sprache) -> Aschen zur Entsorgung | D41: 0 | F41: 100 | J41: 1
A42: 15 | B42: =INDEX(menues!$1:$1048576,$A42,sprache) -> Resultate: | C42: =C4 -> Beispielanlage | D42: =Umweltdeklaration!B11 -> Prüfwert
A43: 29 | B43: =INDEX(menues!$1:$1048576,$A43,sprache) -> EI'99-aggregated, Hierarchist | C43: =Umweltdeklaration!H9 -> 0 | D43: =Umweltdeklaration!D22 -> 0 | E43: =C43/D43 ->  | I43: =E43<1 -> 
B44: =IF(I44,INDEX(menues!$1:$1048576,26,sprache),INDEX(menues!$1:$1048576,27,sprache)) ->  | I44: =AND(I3:I43) -> 

Sheet Umweltdeklaration
H1: 29 | I1: 35 | J1: 34 | K1: 31
A2: 29 | B2: =name -> Beispielanlage | D2: =H2 -> EI'99-aggregated, Hierarchist | E2: Anteil | H2: =INDEX(menues!$1:$1048576,H1,sprache) -> EI'99-aggregated, Hierarchist | I2: =INDEX(menues!$1:$1048576,$I1,sprache) -> Treibhauseffekt 100a 2013 | J2: =INDEX(menues!$1:$1048576,J1,sprache) -> Bedarf nichterneuerbarer energetischer Ressourcen | K2: =INDEX(menues!$1:$1048576,K1,sprache) -> Umweltbelastungspunkte 2013
A3: 56 | D3: =H3 -> Pkt | H3: Pkt | I3: kg CO2-eq | J3: MJ-eq | K3: Pkt
A4: 46 | B4: =INDEX(menues!$1:$1048576,$A4,sprache) -> eingekaufte Substrate | E4: =H4/H$9 ->  | H4: =SUM(LCIA!$C$10:$H$10) -> 0 | I4: =SUM(LCIA!$C$11:$H$11) -> 0 | J4: =SUM(LCIA!$C$12:$H$12) -> 0 | K4: =SUM(LCIA!$C$13:$H$13) -> 0
A5: 45 | B5: =INDEX(menues!$1:$1048576,$A5,sprache) -> Fremdenergiebedarf | H5: =SUM(LCIA!$I$10:$L$10) -> 0 | I5: =SUM(LCIA!$I$11:$L$11) -> 0 | J5: =SUM(LCIA!$I$12:$L$12) -> 0 | K5: =SUM(LCIA!$I$13:$L$13) -> 0
A6: 47 | B6: =INDEX(menues!$1:$1048576,$A6,sprache) -> Transporte | H6: =SUM(LCIA!$M$10:$P$10) -> 0 | I6: =SUM(LCIA!$M$11:$P$11) -> 0 | J6: =SUM(LCIA!$M$12:$P$12) -> 0 | K6: =SUM(LCIA!$M$13:$P$13) -> 0
A7: 48 | B7: =INDEX(menues!$1:$1048576,$A7,sprache) -> Verbrennung, Verteilung | H7: =SUM(LCIA!$Q$10:$AD$10) -> 0 | I7: =SUM(LCIA!$Q$11:$AD$11) -> 0 | J7: =SUM(LCIA!$Q$12:$AD$12) -> 0 | K7: =SUM(LCIA!$Q$13:$AD$13) -> 0
A8: 64 | B8: =INDEX(menues!$1:$1048576,$A8,sprache) -> Aschen zur Entsorgung | H8: =SUM(LCIA!$AE$10:$AI$10) -> 0 | I8: =SUM(LCIA!$AE$11:$AI$11) -> 0 | J8: =SUM(LCIA!$AE$12:$AI$12) -> 0 | K8: =SUM(LCIA!$AE$13:$AI$13) -> 0
A9: 17 | B9: =INDEX(menues!$1:$1048576,$A9,sprache) -> Total | H9: =SUM(H4:H8) -> 0 | I9: =SUM(I4:I8) -> 0 | J9: =SUM(J4:J8) -> 0 | K9: =SUM(K4:K8) -> 0
A10: 49
A11: 56 | B11: =INDEX(menues!$1:$1048576,$A11,sprache) -> Prüfwert | C11: =B9 -> Total | G11: =name -> Beispielanlage | K11: =INDEX(menues!$1:$1048576,$A10,sprache) -> Umweltdeklaration
C12: a | H12: =H3 -> Pkt | I12: =I3 -> kg CO2-eq | J12: =J3 -> MJ-eq | K12: =K3 -> Pkt
A13: 51 | B13: =INDEX(menues!$1:$1048576,$A13,sprache) -> Grenzwert Strom | C13: =INDEX(Prüfwert!$1:$1048576,8,MATCH($A13,Prüfwert!$1:$1,0)) -> 0 | D13: =INDEX(Prüfwert!$1:$1048576,10,MATCH($A13,Prüfwert!$1:$1,0)) -> 0 | E13: =D13/D$22 ->  | G13: =REPLACE(B13,1,10,"")&", kWh" -> Strom, kWh | H13: =IF($C13>0,$E13*H$9/$C13,0) -> 0 | I13: 0 | J13: 0 | K13: 0
A14: 52 | B14: =INDEX(menues!$1:$1048576,$A14,sprache) -> Grenzwert Wärme | C14: =INDEX(Prüfwert!$1:$1048576,8,MATCH($A14,Prüfwert!$1:$1,0)) -> 0 | D14: =INDEX(Prüfwert!$1:$1048576,10,MATCH($A14,Prüfwert!$1:$1,0)) -> 0 | G14: =REPLACE(B14,1,10,"")&", kWh" -> Wärme, kWh | H14: 0 | I14: 0 | J14: 0 | K14: =IF($C14>0,$E14*K$9/$C14,0) -> 0
A15: 53 | B15: =INDEX(menues!$1:$1048576,$A15,sprache) -> Grenzwert Methan | C15: =INDEX(Prüfwert!$1:$1048576,8,MATCH($A15,Prüfwert!$1:$1,0)) -> 0 | D15: =INDEX(Prüfwert!$1:$1048576,10,MATCH($A15,Prüfwert!$1:$1,0)) -> 0 | G15: =REPLACE(B15,1,10,"")&", kWh" -> Methan, kWh | H15: 0 | I15: 0 | J15: 0 | K15: 0
A16: 54 | B16: =INDEX(menues!$1:$1048576,$A16,sprache) -> Referenz Entsorgung | C16: =INDEX(Prüfwert!$1:$1048576,8,MATCH($A16,Prüfwert!$1:$1,0)) -> 0 | D16: =INDEX(Prüfwert!$1:$1048576,10,MATCH($A16,Prüfwert!$1:$1,0)) -> 0
A17: 88 | B17: =INDEX(menues!$1:$1048576,$A17,sprache) -> Referenz Güllelager | C17: =INDEX(Prüfwert!$1:$1048576,4,MATCH($A17,Prüfwert!$1:$1,0)) -> 0 | D17: =INDEX(Prüfwert!$1:$1048576,10,MATCH($A17,Prüfwert!$1:$1,0)) -> 0
A18: 89 | B18: =INDEX(menues!$1:$1048576,$A18,sprache) -> Referenz Kompost | C18: =INDEX(Prüfwert!$1:$1048576,8,MATCH($A18,Prüfwert!$1:$1,0)) -> 0 | D18: =INDEX(Prüfwert!$1:$1048576,10,MATCH($A18,Prüfwert!$1:$1,0)) -> 0
A19: 90 | B19: =INDEX(menues!$1:$1048576,$A19,sprache) -> Referenz Frischklärschlamm | C19: =INDEX(Prüfwert!$1:$1048576,5,MATCH($A19,Prüfwert!$1:$1,0)) -> 0 | D19: =INDEX(Prüfwert!$1:$1048576,10,MATCH($A19,Prüfwert!$1:$1,0)) -> 0
A20: 101 | B20: =INDEX(menues!$1:$1048576,$A20,sprache) -> 0 | C20: =INDEX(Prüfwert!$1:$1048576,5,MATCH($A20,Prüfwert!$1:$1,0)) -> 0 | D20: =INDEX(Prüfwert!$1:$1048576,10,MATCH($A20,Prüfwert!$1:$1,0)) -> 0
A21: 63 | B21: =INDEX(menues!$1:$1048576,$A21,sprache) -> Referenz direkte Emissionen | D21: =INDEX(Prüfwert!$1:$1048576,10,MATCH($A21,Prüfwert!$1:$1,0)) -> 0
A22: 17 | B22: =INDEX(menues!$1:$1048576,$A22,sprache) -> Total | D22: =SUM(D13:D21) -> 0

Sheet LRV
C1: bis 70 kW | D1: 70 kW bis 500 kW | E1: 500 kW bis 1 MW | F1: 1 MW bis 10 MW | G1: über 10 MW
A2: Sauerstoffgehalt im Abgas | B2: %vol | C2: 13 | D2: 13 | E2: 13 | F2: 11 | G2: 11
A3: Stickoxide (NOx) | B3: mg/m3 | C3: 250 | D3: 250 | E3: 250 | F3: 250 | G3: 150
A4: Feststoffe insgesamt (Staub) | B4: mg/m3 | C4: – | D4: 150 | E4: 20 | F4: 20 | G4: 10
A5: ab 1. Januar 2012 | B5: mg/m3 | C5: – | D5: 50 | E5: 20 | F5: 20 | G5: 10
A6: Kohlenmonoxid (CO) | B6: mg/m3 | C6: 1000 | D6: 1000 | E6: 500 | F6: 250 | G6: 150
A7: ab 1. Januar 2012 | B7: mg/m3 | C7: 1000 | D7: 500 | E7: 500 | F7: 250 | G7: 150
A8: gasförmige organische Stoffe, angegeben als Gesamtkohlenstoff (C) | B8: mg/m3 | C8: – | D8: – | E8: – | F8: – | G8: 50
A9: Ammoniak und Ammoniumverbindungen, angegeben als Ammoniak | B9: mg/m3 | C9: – | D9: – | E9: – | F9: 30 | G9: 30
I13: Strom | J13: Wärme | K13: Total | L13: Total berechnet | M13: Prüfung | N13: Wärme Min
I14: 0 | J14: 0.75 | K14: =SUM(I14:J14) -> 0.75 | L14: =WärmeMax-(WärmeMax-WärmeMin)/StromMax*I14+I14 -> 0.75 | M14: =WärmeMax>=WärmeMax-(WärmeMax-WärmeMin)/StromMax*I14 -> TRUE | N14: =WärmeMax-(WärmeMax-WärmeMin)/StromMax*I14 -> 0.75
I15: 0.1 | J15: =$J$14-($J$14-$J$18)/$I$18*I15 -> 0.6125 | K15: =SUM(I15:J15) -> 0.7125 | L15: =WärmeMax-(WärmeMax-WärmeMin)/StromMax*I15+I15 -> 0.7125 | M15: =WärmeMax>=WärmeMax-(WärmeMax-WärmeMin)/StromMax*I15 -> TRUE | N15: =WärmeMax-(WärmeMax-WärmeMin)/StromMax*I15 -> 0.6125
I16: 0.2 | J16: =$J$14-($J$14-$J$18)/$I$18*I16 -> 0.475 | K16: 0.675 | L16: =WärmeMax-(WärmeMax-WärmeMin)/StromMax*I16+I16 -> 0.675 | M16: =WärmeMax>=WärmeMax-(WärmeMax-WärmeMin)/StromMax*I16 -> TRUE | N16: =WärmeMax-(WärmeMax-WärmeMin)/StromMax*I16 -> 0.475
I17: 0.3 | J17: 0.3375 | K17: 0.6375 | L17: =WärmeMax-(WärmeMax-WärmeMin)/StromMax*I17+I17 -> 0.6375 | M17: =WärmeMax>=WärmeMax-(WärmeMax-WärmeMin)/StromMax*I17 -> TRUE | N17: =WärmeMax-(WärmeMax-WärmeMin)/StromMax*I17 -> 0.3375
I18: 0.4 | J18: 0.2 | K18: =SUM(I18:J18) -> 0.6 | L18: =WärmeMax-(WärmeMax-WärmeMin)/StromMax*I18+I18 -> 0.6 | M18: =WärmeMax>=WärmeMax-(WärmeMax-WärmeMin)/StromMax*I18 -> TRUE | N18: =WärmeMax-(WärmeMax-WärmeMin)/StromMax*I18 -> 0.2
I21: 0 | J21: =$J$14-($J$14-$J$18)/$I$18*I21 -> 0.75 | K21: =SUM(I21:J21) -> 0.75 | L21: =WärmeMax-(WärmeMax-WärmeMin)/StromMax*I21+I21 -> 0.75
I22: 0.4 | J22: 0.2 | K22: =SUM(I22:J22) -> 0.6 | L22: =WärmeMax-(WärmeMax-WärmeMin)/StromMax*I22+I22 -> 0.6

Sheet menues (hidden)
A1: Deutsch | B1: Français | C1: English | D1: Italian | F1: Text
A2: naturemade Star Prüfung: Energieprodukte aus Holzenergieanlagen | B2: Contrôle éco-électricité: produits d'énergie des installations de bois énergie | E2: 2 | F2: Deutsch
A3: Eingabe: | B3: Entrée: | E3: 3 | F3: Français
A4: Anlagenname und Referenzzeitraum | B4: Nom de l'installation et période de référence: | E4: 4
A5: Menge | B5: Quantité | E5: 5
A6: Anlagentyp | B6: Type d'installation | E6: 6
A7: Inputs | B7: Inputs | E7: 7
A8: Substrate | B8: Substrats pour l'installation | E8: 8
A9: Strombezug aus Netz | B9: Consommation d'électricité du réseau | E9: 9
A10: Heizölverbrauch | B10: Consommation de mazout | E10: 10
A11: Outputs der Anlage | B11: Outputs | E11: 11
A12: Gesamtproduktion Biomethan, Brutto (12.7 kWh/kg) | B12: Production totale de biogaz, brut (12.7kWh/kg) | E12: 12
A13: Biomethan verbrannt in Fackel, Heizung, BHKW | B13: Biogaz des torchères, chauffage, cogénération | E13: 13
A14: Strom: Verkauf und Verbrauch ausserhalb der Anlage | B14: Courant: vente et consommation hors de l'installation | E14: 14
A15: Resultate: | B15: Résultats: | E15: 15
A16: Biomethan: Verkauf und Verbrauch ausserhalb der Anlage | B16: Biomethane: vente et consommation hors de l'installation | E16: 16
A17: Total | B17: Total | E17: 17
A18: Erdgasverbrauch | B18: Consommation de gaz naturel | E18: 18
A19: naturemade Prüfwert | B19: Valeur-limite naturemade | E19: 19
A20: direkte Emissionen | B20: Émissions directes | E20: 20
A21: Gesamtinputmenge für Anlage | B21: Input total de l'installation | E21: 21
A22: pro kWh Strom | B22: par kWh de courant | E22: 22
A23: Rapsölmethylester | B23: Huile de colza (ester méthylique) | E23: 23
A24: ungewollte Biogas Verluste (Methanschlupf und Unterbrüche) | B24: Pertes de biogaz (volatilisation et interruptions) | E24: 24
A25: Keine Prüfung möglich | B25: Contrôle impossible | E25: 25
A26: Globales naturemade Star Kriterium erfüllt | B26: Critère d'éco-électricité satisfait | E26: 26
A27: naturemade Star Kriterium nicht erfüllt | B27: Critère d'éco-électricité non satisfait | E27: 27
A28: Luftemissionen im trockn. Abgas bez. auf 11%/13% O2 / Feuerungswärmeleistung | B28: Émissions atmosph. dans le gaz épuré rel. à 11%/13% O2 / puissance calorifique | E28: 28
A29: EI'99-aggregated, Hierarchist | B29: EI'99-aggregated, Hierarchist | E29: 29
A30: Einfache Distanz Anlage - Ausbringung/Entsorgung | B30: Distance simple installation - épandage/traitement des déchets | E30: 30
A31: Umweltbelastungspunkte 2013 | B31: Méthode de la saturation écologique 2013 | E31: 31
A32: Einspeisung Wärmeverbund / Verteilverluste | B32: Alimentation de chauffage à distance / pertes de distribution | E32: 32
A33: Bedarf erneuerbarer energetischer Ressourcen | B33: Besoin de ressources énergétiques renouvelables | E33: 33
A34: Bedarf nichterneuerbarer energetischer Ressourcen | B34: Besoin de ressources énergétiques non-renouvelables | E34: 34
A35: Treibhauseffekt 100a 2013 | B35: Effet de serre 100a 2013 | E35: 35
A36: Frischmasse (FM) | B36: Matière fraîche (MF) | E36: 36
A37: Finanzieller Ertrag (plus) bzw. Aufwand (minus), ohne Transportkosten, für die Anlage | B37: Revenus (+) ou Dépenses (-) pour l'installation, sauf frais de transport | E37: 37
A38: Distanz, Anlieferung mit Traktor | B38: Distance simple pour la livraison du co-substrat par tracteur | E38: 38
A39: Distanz, Anlieferung mit Lkw | B39: Distance simple pour la livraison du co-substrat par camion | E39: 39
A40: energetischer Wirkungsgrad | B40: Degré d'efficacité énergétique | E40: 40
A41: Schütt-kubikmeter | B41: Mètre cubes de plaquettes | E41: 41
A42: relative Feuchte (W) | B42: Humidité relative | E42: 42
A43: Nahwärmenutzung: Verkauf, Verbrauch im Gebäudekomplex | B43: Chaleur à proximité: vente, consomm. dans l'ensemble de bâtiments | E43: 43
A44: Mittlere einfache Transportentfernung, Lkw | B44: Distance moyenne de transport, camion | E44: 44
A45: Fremdenergiebedarf | B45: Consommation d'énergie additionnelle | E45: 45
A46: eingekaufte Substrate | B46: Substrats achetés | E46: 46
A47: Transporte | B47: Transports | E47: 47
A48: Verbrennung, Verteilung | B48: Combustion, distribution | E48: 48
A49: Umweltdeklaration | B49: Déclaration environnementale | E49: 49
A50: Infrastruktur | B50: Infrastructure | E50: 50
A51: Grenzwert Strom | B51: Valeur-limite courant | E51: 51
A52: Grenzwert Wärme | B52: Valeur-limite chaleur | E52: 52
A53: Grenzwert Methan | B53: Valeur-limite méthane | E53: 53
A54: Referenz Entsorgung | B54: Référence pour le traitement des déchets | E54: 54
A55: Total Biomethannutzung, Brutto | B55: Utilisation de biométhane, brut | E55: 55
A56: Prüfwert | B56: Valeur de contrôle | E56: 56
A57: Holzheizung | B57: Chauffage de bois | E57: 57 | F57: =INDEX(menues!$1:$1048576,$E57,sprache) -> Holzheizung
A58: WKK Holzverbrennung | B58: CCF bois | E58: 58 | F58: =INDEX(menues!$1:$1048576,$E58,sprache) -> WKK Holzverbrennung
A59: WKK Holzverbrennung, ORC | B59: CCF bois avec ORC | E59: 59 | F59: =INDEX(menues!$1:$1048576,$E59,sprache) -> WKK Holzverbrennung, ORC
A60: WKK Holzvergasung, Pyroforce | B60: CCF bois avec pyroforce | E60: 60 | F60: =INDEX(menues!$1:$1048576,$E60,sprache) -> WKK Holzvergasung, Pyroforce
A61: Holzvergasung, Repotec, Methanisierung | B61: Méthanisation de bois, Repotec, méthanisation | E61: 61 | F61: =INDEX(menues!$1:$1048576,$E61,sprache) -> Holzvergasung, Repotec, Methanisierung
A62: Total Wärmeverkauf (nach Abzug Verteilverluste) | B62: Vente de chaleur | E62: 62 | F62: =INDEX(menues!$1:$1048576,$E62,sprache) -> Total Wärmeverkauf (nach Abzug Verteilverluste)
A63: Referenz direkte Emissionen | B63: Référence pour les émissions directes | E63: 63
A64: Aschen zur Entsorgung | B64: Cendres à éliminer | E64: 64
E65: 65 | F65: =INDEX(menues!$1:$1048576,$E65,sprache) -> 0
A66: Kehrichtverbrennungsanlage | B66: Usine d'incinération des ordures | E66: 66 | F66: =INDEX(menues!$1:$1048576,$E66,sprache) -> Kehrichtverbrennungsanlage
A67: Reaktordeponie | B67: Décharge contrôlée pour résidus stabilisés | E67: 67 | F67: =INDEX(menues!$1:$1048576,$E67,sprache) -> Reaktordeponie
A68: Sondermülldeponie (Untertage) | B68: Décharge souterraine | E68: 68 | F68: =INDEX(menues!$1:$1048576,$E68,sprache) -> Sondermülldeponie (Untertage)
A69: Düngung in der Landwirtschaft | B69: Fertilisation dans l'agriculture | E69: 69 | F69: =INDEX(menues!$1:$1048576,$E69,sprache) -> Düngung in der Landwirtschaft
E70: 70
E71: 71 | F71: =INDEX(menues!$1:$1048576,$E71,sprache) -> 0
A72: Mittlere einfache Transportentfernung, Bahn | B72: Distance moyenne de transport, train | E72: 72 | F72: =INDEX(menues!$1:$1048576,$E72,sprache) -> Mittlere einfache Transportentfernung, Bahn
A73: Mittlere einfache Transportentfernung, Schiff | B73: Distance moyenne de transport, bateau | E73: 73 | F73: =INDEX(menues!$1:$1048576,$E73,sprache) -> Mittlere einfache Transportentfernung, Schiff
A74: Holzpellets | B74: Granulés de bois | E74: 74
A75: Holzschnitzel, Laubbaum | B75: Bois frais déchiqueté (feuillu) | E75: 75
A76: Holzschnitzel, Nadelbaum | B76: Bois frais déchiqueté (résineux) | E76: 76
A77: Holzschnitzel, Restholz (z.B. aus Sägerei) | B77: Restes de bois déchiquetés (p.ex. déchets de sciage) | E77: 77
A78: Holzschnitzel, Altholz | B78: Bois usagé déchiqueté | E78: 78
A79: Total | B79: Total | E79: 79
A80: Holzmenge | B80: Quantité de bois | E80: 80
A81: Stickoxide NOx als NO2 / Emissionsgrenzwerte gemäss LRV | B81: Oxydes d'azote NOx en NO2 / valeur-limite selon OPair | E81: 81
A82: Staub (= Feststoffe), PM10 / Emissionsgrenzwerte gemäss LRV | B82: PM2.5, Particules, poussière / valeur-limite selon OPair | E82: 82
A83: Blei / Emissionsgrenzwerte gemäss LRV | B83: Plomb / valeur-limite selon OPair | E83: 83
A84: Cadmium / Emissionsgrenzwerte gemäss LRV | B84: Cadmium / valeur-limite selon OPair | E84: 84
A85: Zink / Emissionsgrenzwerte gemäss LRV | B85: Zinc / valeur-limite selon OPair | E85: 85
E86: 86
A87: Dieselverbrauch (10 kWh/Liter) | B87: Consommation de diesel (10 kWh/litre) | E87: 87
A88: Referenz Güllelager | B88: Référence pour le dépôt de lisier | E88: 88
A89: Referenz Kompost | B89: Référence pour le compost | E89: 89
A90: Referenz Frischklärschlamm | B90: Référence pour les boues d'épuration fraîches | E90: 90
A91: Grenzwert Kälte | B91: Valeur-limite froid | E91: 91
E92: 92
A93: Energiebezug der Anlage (Systemgrenzen beachten) | B93: Achat d'énergie pour l'installation (cf.limites du système) | E93: 93
A94: bis 70 kW | B94: jusqu' à 70 kW | E94: 94 | F94: =INDEX(menues!$1:$1048576,$E94,sprache) -> bis 70 kW
A95: 70 kW bis 500 kW | B95: 70 kw à 500 kW | E95: 95 | F95: =INDEX(menues!$1:$1048576,$E95,sprache) -> 70 kW bis 500 kW
A96: 500 kW bis 1 MW | B96: 500 kW à 1 MW | E96: 96 | F96: =INDEX(menues!$1:$1048576,$E96,sprache) -> 500 kW bis 1 MW
A97: 1 MW bis 10 MW | B97: 1 MW à 10 MW | E97: 97 | F97: =INDEX(menues!$1:$1048576,$E97,sprache) -> 1 MW bis 10 MW
A98: über 10 MW | B98: plus de 10 MW | E98: 98 | F98: =INDEX(menues!$1:$1048576,$E98,sprache) -> über 10 MW
A99: Gesamtproduktion Strom, Brutto | B99: Production totale de courant, brut | E99: 99
A100: Eigenverbrauch der Anlage | B100: Consommation propre de l'installation | E100: 100
E101: 101
A102: Gesamtmenge Energieprodukte | B102: Quantité totale des produits d'énergie | E102: 102
E103: 103

Sheet LCIA (hidden)
A1: Zeile | C1: 75 | D1: 76 | E1: 77 | F1: 74 | G1: 78 | H1: 23 | I1: 9 | J1: 10 | K1: 87 | L1: 18 | M1: 21 | N1: 21 | O1: 21 | P1: 30 | Q1: 24 | R1: 16 | S1: 21 | T1: 21 | U1: 21 | V1: 21 | W1: 21 | Y1: 81 | Z1: 82 | AA1: 83 | AB1: 84 | AC1: 85 | AD1: 32 | AE1: 64 | AF1: 64 | AG1: 64 | AH1: 64 | AI1: 64
C2: =INDEX(menues!$1:$1048576,C1,sprache) -> Holzschnitzel, Laubbaum | D2: =INDEX(menues!$1:$1048576,D1,sprache) -> Holzschnitzel, Nadelbaum | E2: =INDEX(menues!$1:$1048576,E1,sprache) -> Holzschnitzel, Restholz (z.B. aus Sägerei) | F2: =INDEX(menues!$1:$1048576,F1,sprache) -> Holzpellets | G2: =INDEX(menues!$1:$1048576,G1,sprache) -> Holzschnitzel, Altholz | H2: =INDEX(menues!$1:$1048576,H1,sprache) -> Rapsölmethylester | I2: =INDEX(menues!$1:$1048576,I1,sprache) -> Strombezug aus Netz | J2: =INDEX(menues!$1:$1048576,J1,sprache) -> Heizölverbrauch | K2: =INDEX(menues!$1:$1048576,K1,sprache) -> Dieselverbrauch (10 kWh/Liter) | L2: =INDEX(menues!$1:$1048576,L1,sprache) -> Erdgasverbrauch | M2: =INDEX(menues!$1:$1048576,M1,sprache) -> Gesamtinputmenge für Anlage | N2: =INDEX(menues!$1:$1048576,N1,sprache) -> Gesamtinputmenge für Anlage | O2: =INDEX(menues!$1:$1048576,O1,sprache) -> Gesamtinputmenge für Anlage | P2: =INDEX(menues!$1:$1048576,P1,sprache) -> Einfache Distanz Anlage - Ausbringung/Entsorgung | Q2: =INDEX(menues!$1:$1048576,Q1,sprache) -> ungewollte Biogas Verluste (Methanschlupf und Unterbrüche) | R2: =INDEX(menues!$1:$1048576,R1,sprache) -> Biomethan: Verkauf und Verbrauch ausserhalb der Anlage | S2: =INDEX(menues!$1:$1048576,S1,sprache) -> Gesamtinputmenge für Anlage | T2: =INDEX(menues!$1:$1048576,T1,sprache) -> Gesamtinputmenge für Anlage | U2: =INDEX(menues!$1:$1048576,U1,sprache) -> Gesamtinputmenge für Anlage | V2: =INDEX(menues!$1:$1048576,V1,sprache) -> Gesamtinputmenge für Anlage | W2: =INDEX(menues!$1:$1048576,W1,sprache) -> Gesamtinputmenge für Anlage | X2: Nm3/a | Y2: =INDEX(menues!$1:$1048576,Y1,sprache) -> Stickoxide NOx als NO2 / Emissionsgrenzwerte gemäss LRV | Z2: =INDEX(menues!$1:$1048576,Z1,sprache) -> Staub (= Feststoffe), PM10 / Emissionsgrenzwerte gemäss LRV | AA2: =INDEX(menues!$1:$1048576,AA1,sprache) -> Blei / Emissionsgrenzwerte gemäss LRV | AB2: =INDEX(menues!$1:$1048576,AB1,sprache) -> Cadmium / Emissionsgrenzwerte gemäss LRV | AC2: =INDEX(menues!$1:$1048576,AC1,sprache) -> Zink / Emissionsgrenzwerte gemäss LRV | AD2: =INDEX(menues!$1:$1048576,AD1,sprache) -> Einspeisung Wärmeverbund / Verteilverluste | AE2: =INDEX(menues!$1:$1048576,AE1,sprache) -> Aschen zur Entsorgung | AF2: =INDEX(menues!$1:$1048576,AF1,sprache) -> Aschen zur Entsorgung | AG2: =INDEX(menues!$1:$1048576,AG1,sprache) -> Aschen zur Entsorgung | AH2: =INDEX(menues!$1:$1048576,AH1,sprache) -> Aschen zur Entsorgung | AI2: =INDEX(menues!$1:$1048576,AI1,sprache) -> Aschen zur Entsorgung
A3: Eingabe 1 | C3: =INDEX(Prüfung!$1:$1048576,MATCH(C$1,Prüfung!$A:$A,0),3) -> 0 | D3: =INDEX(Prüfung!$1:$1048576,MATCH(D$1,Prüfung!$A:$A,0),3) -> 0 | E3: =INDEX(Prüfung!$1:$1048576,MATCH(E$1,Prüfung!$A:$A,0),3) -> 0 | F3: =INDEX(Prüfung!$1:$1048576,MATCH(F$1,Prüfung!$A:$A,0),3) -> 0 | G3: =INDEX(Prüfung!$1:$1048576,MATCH(G$1,Prüfung!$A:$A,0),3) -> 0 | H3: =INDEX(Prüfung!$1:$1048576,MATCH(H$1,Prüfung!$A:$A,0),3) -> 0 | I3: =INDEX(Prüfung!$1:$1048576,MATCH(I$1,Prüfung!$A:$A,0),3) -> 0 | J3: =INDEX(Prüfung!$1:$1048576,MATCH(J$1,Prüfung!$A:$A,0),3) -> 0 | K3: =INDEX(Prüfung!$1:$1048576,MATCH(K$1,Prüfung!$A:$A,0),3) -> 0 | L3: =INDEX(Prüfung!$1:$1048576,MATCH(L$1,Prüfung!$A:$A,0),3) -> 0 | M3: =INDEX(Prüfung!$1:$1048576,MATCH(M$1,Prüfung!$A:$A,0),3) -> 0 | N3: =INDEX(Prüfung!$1:$1048576,MATCH(N$1,Prüfung!$A:$A,0),3) -> 0 | O3: =INDEX(Prüfung!$1:$1048576,MATCH(O$1,Prüfung!$A:$A,0),3) -> 0 | P3: =INDEX(Prüfung!$1:$1048576,MATCH(P$1,Prüfung!$A:$A,0),3) -> 0 | Q3: =INDEX(Prüfung!$1:$1048576,MATCH(Q$1,Prüfung!$A:$A,0),3) -> 0 | R3: =INDEX(Prüfung!$1:$1048576,MATCH(R$1,Prüfung!$A:$A,0),3) -> 0 | S3: =INDEX(Prüfung!$1:$1048576,MATCH(S$1,Prüfung!$A:$A,0),3) -> 0 | T3: =INDEX(Prüfung!$1:$1048576,MATCH(T$1,Prüfung!$A:$A,0),3) -> 0 | U3: =INDEX(Prüfung!$1:$1048576,MATCH(U$1,Prüfung!$A:$A,0),3) -> 0 | V3: =INDEX(Prüfung!$1:$1048576,MATCH(V$1,Prüfung!$A:$A,0),3) -> 0 | W3: =INDEX(Prüfung!$1:$1048576,MATCH(W$1,Prüfung!$A:$A,0),3) -> 0 | Y3: =INDEX(Prüfung!$1:$1048576,MATCH(Y$1,Prüfung!$A:$A,0),3) -> 250 | Z3: =INDEX(Prüfung!$1:$1048576,MATCH(Z$1,Prüfung!$A:$A,0),3) -> 20 | AA3: =INDEX(Prüfung!$1:$1048576,MATCH(AA$1,Prüfung!$A:$A,0),3) -> 0 | AB3: =INDEX(Prüfung!$1:$1048576,MATCH(AB$1,Prüfung!$A:$A,0),3) -> 0 | AC3: =INDEX(Prüfung!$1:$1048576,MATCH(AC$1,Prüfung!$A:$A,0),3) -> 0 | AD3: =INDEX(Prüfung!$1:$1048576,MATCH(AD$1,Prüfung!$A:$A,0),3) -> 0 | AE3: =INDEX(Prüfung!$1:$1048576,MATCH(AE$1,Prüfung!$A:$A,0),3) -> 0 | AF3: =INDEX(Prüfung!$1:$1048576,MATCH(AF$1,Prüfung!$A:$A,0),3) -> 0 | AG3: =INDEX(Prüfung!$1:$1048576,MATCH(AG$1,Prüfung!$A:$A,0),3) -> 0 | AH3: =INDEX(Prüfung!$1:$1048576,MATCH(AH$1,Prüfung!$A:$A,0),3) -> 0 | AI3: =INDEX(Prüfung!$1:$1048576,MATCH(AI$1,Prüfung!$A:$A,0),3) -> 0
A4: Eingabe 2 | B4: W Wassergehalt | C4: =INDEX(Prüfung!$1:$1048576,MATCH(C$1,Prüfung!$A:$A,0),4) -> 0.45 | D4: =INDEX(Prüfung!$1:$1048576,MATCH(D$1,Prüfung!$A:$A,0),4) -> 0.45 | E4: =INDEX(Prüfung!$1:$1048576,MATCH(E$1,Prüfung!$A:$A,0),4) -> 0.2857142857 | F4: =INDEX(Prüfung!$1:$1048576,MATCH(F$1,Prüfung!$A:$A,0),4) -> 0.09090909091 | G4: =INDEX(Prüfung!$1:$1048576,MATCH(G$1,Prüfung!$A:$A,0),4) -> 0.2857142857 | H4: =INDEX(Prüfung!$1:$1048576,MATCH(H$1,Prüfung!$A:$A,0),4) -> 0 | I4: =INDEX(Prüfung!$1:$1048576,MATCH(I$1,Prüfung!$A:$A,0),4) -> 0 | J4: =INDEX(Prüfung!$1:$1048576,MATCH(J$1,Prüfung!$A:$A,0),4) -> 0 | K4: =INDEX(Prüfung!$1:$1048576,MATCH(K$1,Prüfung!$A:$A,0),4) -> 0 | L4: =INDEX(Prüfung!$1:$1048576,MATCH(L$1,Prüfung!$A:$A,0),4) -> 0 | M4: =INDEX(Prüfung!$1:$1048576,MATCH(M$1,Prüfung!$A:$A,0),4) ->  | N4: =INDEX(Prüfung!$1:$1048576,MATCH(N$1,Prüfung!$A:$A,0),4) ->  | O4: =INDEX(Prüfung!$1:$1048576,MATCH(O$1,Prüfung!$A:$A,0),4) ->  | P4: =INDEX(Prüfung!$1:$1048576,MATCH(P$1,Prüfung!$A:$A,0),4) -> 0 | Q4: =INDEX(Prüfung!$1:$1048576,MATCH(Q$1,Prüfung!$A:$A,0),4) -> 0 | R4: =INDEX(Prüfung!$1:$1048576,MATCH(R$1,Prüfung!$A:$A,0),4) -> 0 | S4: =INDEX(Prüfung!$1:$1048576,MATCH(S$1,Prüfung!$A:$A,0),4) ->  | T4: =INDEX(Prüfung!$1:$1048576,MATCH(T$1,Prüfung!$A:$A,0),4) ->  | U4: =INDEX(Prüfung!$1:$1048576,MATCH(U$1,Prüfung!$A:$A,0),4) ->  | V4: =INDEX(Prüfung!$1:$1048576,MATCH(V$1,Prüfung!$A:$A,0),4) ->  | W4: =INDEX(Prüfung!$1:$1048576,MATCH(W$1,Prüfung!$A:$A,0),4) ->  | Y4: =Y5*kWhHolz_tAtro*3.6*1000000/1000/Nm3_kgAtro -> 226.24 | Z4: =Z5*kWhHolz_tAtro*3.6*1000000/1000/Nm3_kgAtro -> 224.22 | AA4: =AA5*kWhHolz_tAtro*3.6*1000000/1000/Nm3_kgAtro -> 0.0505 | AB4: =AB5*kWhHolz_tAtro*3.6*1000000/1000/Nm3_kgAtro -> 0.001414 | AC4: =AC5*kWhHolz_tAtro*3.6*1000000/1000/Nm3_kgAtro -> 0.606 | AD4: =INDEX(Prüfung!$1:$1048576,MATCH(AD$1,Prüfung!$A:$A,0),4) -> 0.203 | AE4: =INDEX(Prüfung!$1:$1048576,MATCH(AE$1,Prüfung!$A:$A,0),4) -> 0 | AF4: =INDEX(Prüfung!$1:$1048576,MATCH(AF$1,Prüfung!$A:$A,0),4) -> 0 | AG4: =INDEX(Prüfung!$1:$1048576,MATCH(AG$1,Prüfung!$A:$A,0),4) -> 0 | AH4: =INDEX(Prüfung!$1:$1048576,MATCH(AH$1,Prüfung!$A:$A,0),4) -> 0 | AI4: =INDEX(Prüfung!$1:$1048576,MATCH(AI$1,Prüfung!$A:$A,0),4) -> 0
A5: Eingabe 3 | B5: U Feuchte | C5: =IF(C3>0,(C18/C17-1),0) -> 0 | D5: =IF(D3>0,(D18/D17-1),0) -> 0 | E5: =IF(E3>0,(E18/E17-1),0) -> 0 | F5: =IF(F3>0,(F18/F17-1),0) -> 0 | G5: =IF(G3>0,(G18/G17-1),0) -> 0 | H5: =INDEX(Prüfung!$1:$1048576,MATCH(H$1,Prüfung!$A:$A,0),5) -> 0 | I5: =INDEX(Prüfung!$1:$1048576,MATCH(I$1,Prüfung!$A:$A,0),5) -> 0 | J5: =INDEX(Prüfung!$1:$1048576,MATCH(J$1,Prüfung!$A:$A,0),5) -> 0 | K5: =INDEX(Prüfung!$1:$1048576,MATCH(K$1,Prüfung!$A:$A,0),5) -> 0 | L5: =INDEX(Prüfung!$1:$1048576,MATCH(L$1,Prüfung!$A:$A,0),5) -> 0 | M5: =INDEX(Prüfung!$1:$1048576,MATCH(M$1,Prüfung!$A:$A,0),5) ->  | N5: =INDEX(Prüfung!$1:$1048576,MATCH(N$1,Prüfung!$A:$A,0),5) ->  | O5: =INDEX(Prüfung!$1:$1048576,MATCH(O$1,Prüfung!$A:$A,0),5) ->  | P5: =INDEX(Prüfung!$1:$1048576,MATCH(P$1,Prüfung!$A:$A,0),5) -> 0 | Q5: =INDEX(Prüfung!$1:$1048576,MATCH(Q$1,Prüfung!$A:$A,0),5) -> 0 | R5: =INDEX(Prüfung!$1:$1048576,MATCH(R$1,Prüfung!$A:$A,0),5) -> 0 | S5: =INDEX(Prüfung!$1:$1048576,MATCH(S$1,Prüfung!$A:$A,0),5) ->  | T5: =INDEX(Prüfung!$1:$1048576,MATCH(T$1,Prüfung!$A:$A,0),5) ->  | U5: =INDEX(Prüfung!$1:$1048576,MATCH(U$1,Prüfung!$A:$A,0),5) ->  | V5: =INDEX(Prüfung!$1:$1048576,MATCH(V$1,Prüfung!$A:$A,0),5) ->  | W5: =INDEX(Prüfung!$1:$1048576,MATCH(W$1,Prüfung!$A:$A,0),5) ->  | X5: =Nm3_kgAtro/kWhHolz_tAtro*1000/3.6*$V3*3.6-R5*1000*Y16 -> 0 | Y5: 0.000112 | Z5: 0.000111 | AA5: 2.5e-08 | AB5: 7e-10 | AC5: 3e-07 | AD5: =INDEX(Prüfung!$1:$1048576,MATCH(AD$1,Prüfung!$A:$A,0),5) ->  | AE5: =INDEX(Prüfung!$1:$1048576,MATCH(AE$1,Prüfung!$A:$A,0),5) -> 0 | AF5: =INDEX(Prüfung!$1:$1048576,MATCH(AF$1,Prüfung!$A:$A,0),5) -> 0 | AG5: =INDEX(Prüfung!$1:$1048576,MATCH(AG$1,Prüfung!$A:$A,0),5) -> 0 | AH5: =INDEX(Prüfung!$1:$1048576,MATCH(AH$1,Prüfung!$A:$A,0),5) -> 0 | AI5: =INDEX(Prüfung!$1:$1048576,MATCH(AI$1,Prüfung!$A:$A,0),5) -> 0
A6: Eingabe 4 | B6: 6 | C6: =INDEX(Prüfung!$1:$1048576,MATCH(C$1,Prüfung!$A:$A,0),$B6) -> 0 | D6: =INDEX(Prüfung!$1:$1048576,MATCH(D$1,Prüfung!$A:$A,0),$B6) -> 0 | E6: =INDEX(Prüfung!$1:$1048576,MATCH(E$1,Prüfung!$A:$A,0),$B6) -> 0 | F6: =INDEX(Prüfung!$1:$1048576,MATCH(F$1,Prüfung!$A:$A,0),$B6) -> 0 | G6: =INDEX(Prüfung!$1:$1048576,MATCH(G$1,Prüfung!$A:$A,0),$B6) -> 0 | H6: =INDEX(Prüfung!$1:$1048576,MATCH(H$1,Prüfung!$A:$A,0),$B6) -> 0 | I6: =INDEX(Prüfung!$1:$1048576,MATCH(I$1,Prüfung!$A:$A,0),6) -> 0 | J6: =INDEX(Prüfung!$1:$1048576,MATCH(J$1,Prüfung!$A:$A,0),6) -> 0 | K6: =INDEX(Prüfung!$1:$1048576,MATCH(K$1,Prüfung!$A:$A,0),6) -> 0 | L6: =INDEX(Prüfung!$1:$1048576,MATCH(L$1,Prüfung!$A:$A,0),6) -> 0 | M6: =SUMPRODUCT($C18:$H18,$C6:$H6) -> 0 | N6: =SUMPRODUCT($C18:$H18,$C7:$H7) -> 0 | O6: =SUMPRODUCT($C18:$H18,$C8:$H8) -> 0 | P6: =INDEX(Prüfung!$1:$1048576,MATCH(P$1,Prüfung!$A:$A,0),6) -> 0 | Q6: =INDEX(Prüfung!$1:$1048576,MATCH(Q$1,Prüfung!$A:$A,0),6) -> 0 | R6: =INDEX(Prüfung!$1:$1048576,MATCH(R$1,Prüfung!$A:$A,0),6) -> 0 | S6: =INDEX(Prüfung!$1:$1048576,MATCH(S$1,Prüfung!$A:$A,0),6) -> 0 | T6: =INDEX(Prüfung!$1:$1048576,MATCH(T$1,Prüfung!$A:$A,0),6) -> 0 | U6: =INDEX(Prüfung!$1:$1048576,MATCH(U$1,Prüfung!$A:$A,0),6) -> 0 | V6: =INDEX(Prüfung!$1:$1048576,MATCH(V$1,Prüfung!$A:$A,0),6) -> 0 | W6: =INDEX(Prüfung!$1:$1048576,MATCH(W$1,Prüfung!$A:$A,0),6) -> 0 | Y6: =(Y3-Y4)*0.000001*Nm3_Abgas -> 0 | Z6: =(Z3-Z4)*0.000001*Nm3_Abgas -> 0 | AA6: =(AA3-AA4)*0.000001*Nm3_Abgas -> 0 | AB6: =(AB3-AB4)*0.000001*Nm3_Abgas -> 0 | AC6: =(AC3-AC4)*0.000001*Nm3_Abgas -> 0 | AD6: =INDEX(Prüfung!$1:$1048576,MATCH(AD$1,Prüfung!$A:$A,0),6) -> 0 | AE6: =INDEX(Prüfung!$1:$1048576,MATCH(AE$1,Prüfung!$A:$A,0),6) -> 100 | AF6: =INDEX(Prüfung!$1:$1048576,MATCH(AF$1,Prüfung!$A:$A,0),6) -> 100 | AG6: =INDEX(Prüfung!$1:$1048576,MATCH(AG$1,Prüfung!$A:$A,0),6) -> 100 | AH6: =INDEX(Prüfung!$1:$1048576,MATCH(AH$1,Prüfung!$A:$A,0),6) -> 100 | AI6: =INDEX(Prüfung!$1:$1048576,MATCH(AI$1,Prüfung!$A:$A,0),6) -> 100
A7: Eingabe 5 | B7: 7 | C7: =INDEX(Prüfung!$1:$1048576,MATCH(C$1,Prüfung!$A:$A,0),$B7) -> 0 | D7: =INDEX(Prüfung!$1:$1048576,MATCH(D$1,Prüfung!$A:$A,0),$B7) -> 0 | E7: =INDEX(Prüfung!$1:$1048576,MATCH(E$1,Prüfung!$A:$A,0),$B7) -> 0 | F7: =INDEX(Prüfung!$1:$1048576,MATCH(F$1,Prüfung!$A:$A,0),$B7) -> 0 | G7: =INDEX(Prüfung!$1:$1048576,MATCH(G$1,Prüfung!$A:$A,0),$B7) -> 0 | H7: =INDEX(Prüfung!$1:$1048576,MATCH(H$1,Prüfung!$A:$A,0),$B7) -> 0
A8: Eingabe 6 | B8: 8 | C8: =INDEX(Prüfung!$1:$1048576,MATCH(C$1,Prüfung!$A:$A,0),$B8) -> 0 | D8: =INDEX(Prüfung!$1:$1048576,MATCH(D$1,Prüfung!$A:$A,0),$B8) -> 0 | E8: =INDEX(Prüfung!$1:$1048576,MATCH(E$1,Prüfung!$A:$A,0),$B8) -> 0 | F8: =INDEX(Prüfung!$1:$1048576,MATCH(F$1,Prüfung!$A:$A,0),$B8) -> 0 | G8: =INDEX(Prüfung!$1:$1048576,MATCH(G$1,Prüfung!$A:$A,0),$B8) -> 0 | H8: =INDEX(Prüfung!$1:$1048576,MATCH(H$1,Prüfung!$A:$A,0),$B8) -> 0
A9: Umrechnungsfaktor | C9: =C3*(1-C4)/(1-C15) -> 0 | D9: =D3*(1-D4)/(1-D15) -> 0 | E9: =E3*(1-E4)/(1-E15) -> 0 | F9: =F3*(1-F4)/(1-F15) -> 0 | G9: =G3*(1-G4)/(1-G15) -> 0 | H9: =H3 -> 0 | I9: =I3 -> 0 | J9: =J3 -> 0 | K9: =K3 -> 0 | L9: =L3 -> 0 | M9: =M6 -> 0 | N9: =N6 -> 0 | O9: =O6 -> 0 | P9: =P6 -> 0 | Q9: =Q3 -> 0 | R9: =IF(Anlagentyp=R14,R5*1,0) -> 0 | S9: =IF(Anlagentyp=S14,S3*1,0) -> 0 | T9: =IF(Anlagentyp=T14,T3*1,0) -> 0 | U9: =IF(Anlagentyp=U14,U3*1,0) -> 0 | V9: =IF(Anlagentyp=V14,V3*1,0) -> 0 | W9: =IF(Anlagentyp=W14,W3*1,0) -> 0 | X9: =IF(SUM(V9:W9)>0,Nm3_Abgas,0) -> 0 | Y9: =Y6 -> 0 | Z9: =Z6 -> 0 | AA9: =IF(altholzverbrennung,AA6,0) -> 0 | AB9: =IF(altholzverbrennung,AB6,0) -> 0 | AC9: =IF(altholzverbrennung,AC6,0) -> 0 | AD9: =AD3 -> 0 | AE9: =IF(Auswahl_Behandlung_fest=LCIA!AE14,LCIA!AE4,0) -> 0 | AF9: =IF(Auswahl_Behandlung_fest=LCIA!AF14,LCIA!AF4,0) -> 0 | AG9: =IF(Auswahl_Behandlung_fest=LCIA!AG14,LCIA!AG4,0) -> 0 | AH9: =IF(Auswahl_Behandlung_fest=LCIA!AH14,LCIA!AH4,0) -> 0 | AI9: =IF(Auswahl_Behandlung_fest=LCIA!AI14,LCIA!AI4,0) -> 0
A10: Eco-indicator | B10: =SUM(C10:AI10) -> 0 | C10: =C67*C9 -> 0 | D10: 0 | E10: 0 | F10: 0 | G10: 0 | H10: 0 | I10: 0 | J10: =J67*J$9 -> 0 | K10: =K67*K9 -> 0 | L10: 0 | M10: 0 | N10: =N67*N9 -> 0 | O10: =O67*O9 -> 0 | P10: 0 | Q10: 0 | R10: 0 | S10: 0 | T10: 0 | U10: 0 | V10: 0 | W10: 0 | X10: =X67*X9 -> 0 | Y10: =Y67*Y9 -> 0 | Z10: 0 | AA10: 0 | AB10: 0 | AC10: 0 | AD10: 0 | AE10: 0 | AF10: 0 | AG10: 0 | AH10: 0 | AI10: 0
A11: =A119 -> IPCC GWP 100a | B11: =SUM(C11:AI11) -> 0 | C11: =C119*C$9 -> 0 | D11: 0 | E11: 0 | F11: 0 | G11: 0 | H11: 0 | I11: 0 | J11: 0 | K11: 0 | L11: 0 | M11: 0 | N11: =N119*N$9 -> 0 | O11: =O119*O$9 -> 0 | P11: 0 | Q11: 0 | R11: 0 | S11: 0 | T11: 0 | U11: 0 | V11: 0 | W11: =W119*W$9 -> 0 | X11: =X119*X$9 -> 0 | Y11: 0 | Z11: 0 | AA11: 0 | AB11: 0 | AC11: 0 | AD11: 0 | AE11: 0 | AF11: 0 | AG11: 0 | AH11: 0 | AI11: 0
A12: =B123 -> Impact assessment | B12: =SUM(C12:AI12) -> 0 | C12: =C167*C$9 -> 0 | D12: 0 | E12: 0 | F12: 0 | G12: 0 | H12: 0 | I12: 0 | J12: 0 | K12: 0 | L12: 0 | M12: 0 | N12: 0 | O12: 0 | P12: 0 | Q12: 0 | R12: 0 | S12: 0 | T12: 0 | U12: 0 | V12: 0 | W12: 0 | X12: 0 | Y12: 0 | Z12: 0 | AA12: 0 | AB12: 0 | AC12: 0 | AD12: 0 | AE12: 0 | AF12: 0 | AG12: 0 | AH12: 0 | AI12: 0
A13: =B175 -> Impact assessment | B13: =SUM(C13:AI13) -> 0 | C13: =C219*C$9 -> 0 | D13: 0 | E13: 0 | F13: 0 | G13: 0 | H13: 0 | I13: 0 | J13: 0 | K13: 0 | L13: 0 | M13: 0 | N13: 0 | O13: 0 | P13: 0 | Q13: 0 | R13: 0 | S13: 0 | T13: 0 | U13: 0 | V13: 0 | W13: 0 | X13: 0 | Y13: 0 | Z13: 0 | AA13: 0 | AB13: 0 | AC13: 0 | AD13: 0 | AE13: 0 | AF13: 0 | AG13: 0 | AH13: 0 | AI13: 0
A14: Holz atro ecoinvent | B14: t/m3 | C14: 0.239 | D14: 0.169 | E14: 0.189 | F14: 0.65 | G14: 0.189 | S14: 1 | T14: 2 | U14: 3 | V14: 4 | W14: 5 | AE14: 1 | AG14: 2 | AH14: 3 | AI14: 4
A15: W Wassergehalt | B15: % | C15: =((C16+1)*C14-C14)/((C16+1)*C14) -> 0.4444444444 | D15: =((D16+1)*D14-D14)/((D16+1)*D14) -> 0.5833333333 | E15: =((E16+1)*E14-E14)/((E16+1)*E14) -> 0.2857142857 | F15: =((F16+1)*F14-F14)/((F16+1)*F14) -> 0.09090909091 | G15: =((G16+1)*G14-G14)/((G16+1)*G14) -> 0.2857142857 | X15: =SUM(X10:AC10) -> 0 | Y15: 10 | Z15: Nm3/kg atro
A16: U feuchte ecoinvent | B16: % | C16: 0.8 | D16: 1.4 | E16: 0.4 | F16: 0.1 | G16: 0.4 | Y16: 22.9 | Z16: Nm3/kg Biomethan
A17: Holz atro Anlage | B17: t/m3 | C17: =C14*C9 -> 0 | D17: =D14*D9 -> 0 | E17: =E14*E9 -> 0 | F17: =F14*F9 -> 0 | G17: =G14*G9 -> 0 | Y17: =20.2/3.6*1000 -> 5611.111111 | Z17: kWhHolz_tAtro
A18: Holz FM Anlage | B18: t FM | C18: =C17/(1-C4) -> 0 | D18: =D17/(1-D4) -> 0 | E18: =E17/(1-E4) -> 0 | F18: =F17/(1-F4) -> 0 | G18: =G17/(1-G4) -> 0 | H18: =H5 -> 0
A19: unterer Heizwert | B19: kWh | C19: =1000*C18*(20.2*0.8-0.2*(100*C5*100/(100+C5*100)))/3.6 -> 0 | D19: =1000*D18*(20.2*0.8-0.2*(100*D5*100/(100+D5*100)))/3.6 -> 0 | E19: =1000*E18*(20.2*0.8-0.2*(100*E5*100/(100+E5*100)))/3.6 -> 0 | F19: =1000*F18*(20.2*0.8-0.2*(100*F5*100/(100+F5*100)))/3.6 -> 0 | G19: =1000*G18*(20.2*0.8-0.2*(100*G5*100/(100+G5*100)))/3.6 -> 0
A21: Calculation: | B21: Compare
A22: Results: | B22: Impact assessment
A23: Product 1: | B23: 1 m3 Wood chips, hardwood, u=80%, at forest/RER U (of project ESU database 2019)
A24: Product 2: | B24: 1 m3 Wood chips, softwood, u=140%, at forest/RER U (of project ESU database 2019)
A25: Product 3: | B25: 1 m3 Wood chips, mixed, from industry, u=40%, at plant/RER U (of project ESU database 2019)
A26: Product 4: | B26: 1 m3 Wood pellets, u=10%, at storehouse/RER U (of project ESU database 2019)
A27: Product 5: | B27: 1 m3 Waste wood chips, mixed, from industry, u=40%, at plant/CH U (of project ESU database 2019)
A28: Product 6: | B28: 1000 kg Rape methyl ester, at regional storage/CH U (of project ESU database 2019)
A29: Product 7: | B29: 1 kWh electricity, medium voltage, at grid/kWh/CH U (of project ESU database 2019)
A30: Product 8: | B30: 3.6 MJ light fuel oil, burned in industrial furnace 1MW, non-modulating/MJ/CH U (of project ESU database 2019)
A31: Product 9: | B31: 3.6 MJ Diesel, burned in building machine/GLO U (of project ESU database 2019)
A32: Product 10: | B32: 3.6 MJ Natural gas, burned in boiler condensing modulating >100kW/RER U (of project ESU database 2019)
A33: Product 11: | B33: 1 tkm Transport, lorry 20-28t, fleet average/CH U (of project ESU database 2019)
A34: Product 12: | B34: 1 tkm Transport, freight, rail/RER U (of project ESU database 2019)
A35: Product 13: | B35: 1 tkm Transport, transoceanic freight ship/OCE U (of project ESU database 2019)
A36: Product 14: | B36: 1 tkm Transport, tractor and trailer/CH U (of project ESU database 2019)
A37: Product 15: | B37: 1 kWh biogas, vented/CH U (of project 208 naturemade KWM)
A38: Product 16: | B38: 1 kWh methane, 96 vol-%, purification and distribution/kWh/CH U (of project 208 naturemade KWM)
A39: Product 17: | B39: 1 kWh wood chips combustion, burned in furnace/MJ/CH U (of project 208 naturemade KWM)
A40: Product 18: | B40: 1 kWh wood chips combustion, burned in cogen 6400kWth/MJ/CH U (of project 208 naturemade KWM)
A41: Product 19: | B41: 1 kWh wood chips combustion, burned in cogen ORC 1400kWth/MJ/CH U (of project 208 naturemade KWM)
A42: Product 20: | B42: 1 kWh wood chips, gasified in cogen, fixed bed/MJ/KWM U (of project 208 naturemade KWM)
A43: Product 21: | B43: 1 kWh wood chips, in fluidized bed gasification, with biomethane production/MJ/KWM U (of project 208 naturemade KWM)
A44: Product 22: | B44: 1 m3 emission, gasification/m3/KWM U (of project 208 naturemade KWM)
A45: Product 23: | B45: 1 kg emission, NOx/kg/CH U (of project 208 naturemade KWM)
A46: Product 24: | B46: 1 kg emission, PM2.5/kg/CH U (of project 208 naturemade KWM)
A47: Product 25: | B47: 1 kg emission, lead/kg/CH U (of project 208 naturemade KWM)
A48: Product 26: | B48: 1 kg emission, cadmium/kg/CH U (of project 208 naturemade KWM)
A49: Product 27: | B49: 1 kg emission, zinc/kg/CH U (of project 208 naturemade KWM)
A50: Product 28: | B50: 1 kWh transport, district heat network, average/CH/I U (of project 208 naturemade KWM)
A51: Product 29: | B51: 1000 kg disposal, wood ash mixture, pure, 0% water, to municipal incineration/kg/CH U (of project ESU database 2019)
A52: Product 30: | B52: 1000 kg Disposal, inert waste, 5% water, to inert material landfill/CH U (of project ESU database 2019)
A53: Product 31: | B53: 1 ton disposal, filter dust, wood, to residual material landfill/CH U (of project 208 naturemade KWM)
A54: Product 32: | B54: 1000 kg Disposal, hazardous waste, 0% water, to underground deposit/DE U (of project ESU database 2019)
A55: Product 33: | B55: 1000 kg Disposal, wood ash mixture, pure, 0% water, to landfarming/CH U (of project ESU database 2019)
A56: Method: | B56: Eco-indicator 99 (H) V2.10 / Europe EI 99 H/A
A57: Indicator: | B57: Single score
A58: Skip categories: | B58: Never
A59: Default units: | B59: Yes
A60: Exclude infrastructure processes: | B60: No
A61: Exclude long-term emissions: | B61: Yes
A62: Per impact category: | B62: No
A63: Sorted on item: | B63: Damage category
A64: Sort order: | B64: Ascending
A66: Damage category | B66: Unit | C66: Wood chips, hardwood, u=80%, at forest/RER U | D66: Wood chips, softwood, u=140%, at forest/RER U | E66: Wood chips, mixed, from industry, u=40%, at plant/RER U | F66: Wood pellets, u=10%, at storehouse/RER U | G66: Waste wood chips, mixed, from industry, u=40%, at plant/CH U | H66: Rape methyl ester, at regional storage/CH U | I66: electricity, medium voltage, at grid/kWh/CH U | J66: light fuel oil, burned in industrial furnace 1MW, non-modulating/MJ/CH U | K66: Diesel, burned in building machine/GLO U | L66: Natural gas, burned in boiler condensing modulating >100kW/RER U | M66: Transport, lorry 20-28t, fleet average/CH U | N66: Transport, freight, rail/RER U | O66: Transport, transoceanic freight ship/OCE U | P66: Transport, tractor and trailer/CH U | Q66: biogas, vented/CH U | R66: methane, 96 vol-%, purification and distribution/kWh/CH U | S66: wood chips combustion, burned in furnace/MJ/CH U | T66: wood chips combustion, burned in cogen 6400kWth/MJ/CH U | U66: wood chips combustion, burned in cogen ORC 1400kWth/MJ/CH U | V66: wood chips, gasified in cogen, fixed bed/MJ/KWM U | W66: wood chips, in fluidized bed gasification, with biomethane production/MJ/KWM U | X66: emission, gasification/m3/KWM U | Y66: emission, NOx/kg/CH U | Z66: emission, PM2.5/kg/CH U | AA66: emission, lead/kg/CH U | AB66: emission, cadmium/kg/CH U | AC66: emission, zinc/kg/CH U | AD66: transport, district heat network, average/CH/I U | AE66: disposal, wood ash mixture, pure, 0% water, to municipal incineration/kg/CH U | AF66: Disposal, inert waste, 5% water, to inert material landfill/CH U | AG66: disposal, filter dust, wood, to residual material landfill/CH U | AH66: Disposal, hazardous waste, 0% water, to underground deposit/DE U | AI66: Disposal, wood ash mixture, pure, 0% water, to landfarming/CH U
A67: Total | B67: Pt | C67: 2.8970664 | D67: 1.8026759 | E67: 0.69841465 | F67: 12.485646 | G67: 0.4367453 | H67: 657.17072 | I67: 0.0063858774 | J67: 0.023134435 | K67: 0.055851981 | L67: 0.020926868 | M67: 0.023827947 | N67: 0.0034913637 | O67: 0.0018655715 | P67: 0.039501148 | Q67: 0.012469478 | R67: 8.4590316e-05 | S67: 0.015177533 | T67: 0.015175474 | U67: 0.015249618 | V67: 0.00025737156 | W67: 0.00060698491 | X67: 0.0083395737 | Y67: 4.447721 | Z67: 32.394359 | AA67: 177.5968 | AB67: 6836.128 | AC67: 202.0688 | AD67: 0.00015073917 | AE67: 3.1036751 | AF67: 1.2324101 | AG67: 14.641644 | AH67: 13.544538 | AI67: 1484.3253
A68: Human Health | B68: Pt | C68: 0.45171066 | D68: 0.40990968 | E68: 0.13229611 | F68: 3.4068716 | G68: 0.22548292 | H68: 48.844057 | I68: 0.0035052858 | J68: 0.0059537501 | K68: 0.033493837 | L68: 0.0047080869 | M68: 0.011843782 | N68: 0.0019744255 | O68: 0.0012475553 | P68: 0.02325223 | Q68: 0.012469478 | R68: 2.9764242e-05 | S68: 0.014716055 | T68: 0.014703848 | U68: 0.014731408 | V68: 0.0001171763 | W68: 0.00033655546 | X68: 0.0082234021 | Y68: 4.048268 | Z68: 32.394359 | AA68: 0 | AB68: 6161.4 | AC68: 0 | AD68: 8.354007e-05 | AE68: 1.5147964 | AF68: 0.53039242 | AG68: 14.007887 | AH68: 8.1478163 | AI68: 1482.8983
A69: Ecosystem Quality | B69: Pt | C69: 2.1792176 | D69: 1.1434601 | E69: 0.47802376 | F69: 6.6229693 | G69: 0.024662703 | H69: 538.10389 | I69: 0.00033057571 | J69: 0.00041410822 | K69: 0.0051107563 | L69: 0.0003752325 | M69: 0.0013366195 | N69: 0.00031059723 | O69: 0.00010821953 | P69: 0.0028284377 | Q69: 0 | R69: 1.832177e-05 | S69: 0.00043892099 | T69: 0.00044386907 | U69: 0.00045008367 | V69: 4.3949011e-05 | W69: 5.1014266e-05 | X69: 0.00011617161 | Y69: 0.39945296 | Z69: 0 | AA69: 177.5968 | AB69: 674.728 | AC69: 202.0688 | AD69: 8.0498861e-06 | AE69: 0.21354199 | AF69: 0.033995252 | AG69: 0.10073621 | AH69: 1.6006203 | AI69: 1.3684349
A70: Resources | B70: Pt | C70: 0.26613818 | D70: 0.24930612 | E70: 0.08809477 | F70: 2.4558046 | G70: 0.18659968 | H70: 70.222777 | I70: 0.0025500159 | J70: 0.016766576 | K70: 0.017247388 | L70: 0.015843549 | M70: 0.010647545 | N70: 0.001206341 | O70: 0.0005097966 | P70: 0.01342048 | Q70: 0 | R70: 3.6504304e-05 | S70: 2.2556707e-05 | T70: 2.7757012e-05 | U70: 6.8126106e-05 | V70: 9.6246249e-05 | W70: 0.00021941518 | X70: 0 | Y70: 0 | Z70: 0 | AA70: 0 | AB70: 0 | AC70: 0 | AD70: 5.9149217e-05 | AE70: 1.3753367 | AF70: 0.66802239 | AG70: 0.53302074 | AH70: 3.7961016 | AI70: 0.058537515
A71: Total | B71: Pt | C71: 2.8666271 | D71: 1.790313 | E71: 0.68384735 | F71: 8.9681536 | G71: 0.42675434 | H71: 645.46215 | I71: 0.0077487104 | J71: 0.023467776 | K71: 0.051111432 | L71: 0.018557409 | M71: 0.023465711 | N71: 0.0033892198 | O71: 0.0018397956 | P71: 0.041417309 | Q71: 0.012469478 | R71: 0.00057015292 | S71: 0.015182209 | T71: 0.015176817 | U71: 0.015247699 | V71: 0.00025209095 | W71: 0.00059888221 | X71: 0.0083395737 | Y71: 4.447721 | Z71: 32.394359 | AA71: 177.5968 | AB71: 6836.128 | AC71: 202.0688 | AD71: 0.00017827087 | AE71: 4.5447882 | AF71: 1.1637668 | AG71: 14.622802 | AH71: 19.09129 | AI71: 1484.3269
C72: =C71=C67 -> FALSE | D72: =D71=D67 -> FALSE | E72: FALSE | F72: FALSE | G72: FALSE | H72: FALSE | I72: FALSE | J72: FALSE | K72: FALSE | L72: FALSE | M72: FALSE | P72: FALSE | Q72: TRUE | R72: FALSE | S72: FALSE | T72: FALSE | U72: FALSE | V72: FALSE | W72: FALSE | X72: TRUE | Y72: TRUE | Z72: TRUE | AA72: TRUE | AB72: TRUE | AC72: TRUE | AD72: FALSE | AE72: FALSE | AF72: FALSE | AG72: FALSE | AH72: FALSE | AI72: FALSE
A75: Calculation: | B75: Compare
A76: Results: | B76: Impact assessment
A77: Product 1: | B77: 1 m3 Wood chips, hardwood, u=80%, at forest/RER U (of project ESU database 2019)
A78: Product 2: | B78: 1 m3 Wood chips, softwood, u=140%, at forest/RER U (of project ESU database 2019)
A79: Product 3: | B79: 1 m3 Wood chips, mixed, from industry, u=40%, at plant/RER U (of project ESU database 2019)
A80: Product 4: | B80: 1 m3 Wood pellets, u=10%, at storehouse/RER U (of project ESU database 2019)
A81: Product 5: | B81: 1 m3 Waste wood chips, mixed, from industry, u=40%, at plant/CH U (of project ESU database 2019)
A82: Product 6: | B82: 1000 kg Rape methyl ester, at regional storage/CH U (of project ESU database 2019)
A83: Product 7: | B83: 1 kWh electricity, medium voltage, at grid/kWh/CH U (of project ESU database 2019)
A84: Product 8: | B84: 3.6 MJ light fuel oil, burned in industrial furnace 1MW, non-modulating/MJ/CH U (of project ESU database 2019)
A85: Product 9: | B85: 3.6 MJ Diesel, burned in building machine/GLO U (of project ESU database 2019)
A86: Product 10: | B86: 3.6 MJ Natural gas, burned in boiler condensing modulating >100kW/RER U (of project ESU database 2019)
A87: Product 11: | B87: 1 tkm Transport, lorry 20-28t, fleet average/CH U (of project ESU database 2019)
A88: Product 12: | B88: 1 tkm Transport, freight, rail/RER U (of project ESU database 2019)
A89: Product 13: | B89: 1 tkm Transport, transoceanic freight ship/OCE U (of project ESU database 2019)
A90: Product 14: | B90: 1 tkm Transport, tractor and trailer/CH U (of project ESU database 2019)
A91: Product 15: | B91: 1 kWh biogas, vented/CH U (of project 208 naturemade KWM)
A92: Product 16: | B92: 1 kWh methane, 96 vol-%, purification and distribution/kWh/CH U (of project 208 naturemade KWM)
A93: Product 17: | B93: 1 kWh wood chips combustion, burned in furnace/MJ/CH U (of project 208 naturemade KWM)
A94: Product 18: | B94: 1 kWh wood chips combustion, burned in cogen 6400kWth/MJ/CH U (of project 208 naturemade KWM)
A95: Product 19: | B95: 1 kWh wood chips combustion, burned in cogen ORC 1400kWth/MJ/CH U (of project 208 naturemade KWM)
A96: Product 20: | B96: 1 kWh wood chips, gasified in cogen, fixed bed/MJ/KWM U (of project 208 naturemade KWM)
A97: Product 21: | B97: 1 kWh wood chips, in fluidized bed gasification, with biomethane production/MJ/KWM U (of project 208 naturemade KWM)
A98: Product 22: | B98: 1 m3 emission, gasification/m3/KWM U (of project 208 naturemade KWM)
A99: Product 23: | B99: 1 kg emission, NOx/kg/CH U (of project 208 naturemade KWM)
A100: Product 24: | B100: 1 kg emission, PM2.5/kg/CH U (of project 208 naturemade KWM)
A101: Product 25: | B101: 1 kg emission, lead/kg/CH U (of project 208 naturemade KWM)
A102: Product 26: | B102: 1 kg emission, cadmium/kg/CH U (of project 208 naturemade KWM)
A103: Product 27: | B103: 1 kg emission, zinc/kg/CH U (of project 208 naturemade KWM)
A104: Product 28: | B104: 1 kWh transport, district heat network, average/CH/I U (of project 208 naturemade KWM)
A105: Product 29: | B105: 1000 kg disposal, wood ash mixture, pure, 0% water, to municipal incineration/kg/CH U (of project ESU database 2019)
A106: Product 30: | B106: 1000 kg Disposal, inert waste, 5% water, to inert material landfill/CH U (of project ESU database 2019)
A107: Product 31: | B107: 1 ton disposal, filter dust, wood, to residual material landfill/CH U (of project 208 naturemade KWM)
A108: Product 32: | B108: 1000 kg Disposal, hazardous waste, 0% water, to underground deposit/DE U (of project ESU database 2019)
A109: Product 33: | B109: 1000 kg Disposal, wood ash mixture, pure, 0% water, to landfarming/CH U (of project ESU database 2019)
A110: Method: | B110: IPCC 2013 GWP 100a V1.03
A111: Indicator: | B111: Characterisation
A112: Skip categories: | B112: Never
A113: Exclude infrastructure processes: | B113: No
A114: Exclude long-term emissions: | B114: No
A115: Sorted on item: | B115: Impact category
A116: Sort order: | B116: Ascending
A118: Impact category | B118: Unit | C118: Wood chips, hardwood, u=80%, at forest/RER U | D118: Wood chips, softwood, u=140%, at forest/RER U | E118: Wood chips, mixed, from industry, u=40%, at plant/RER U | F118: Wood pellets, u=10%, at storehouse/RER U | G118: Waste wood chips, mixed, from industry, u=40%, at plant/CH U | H118: Rape methyl ester, at regional storage/CH U | I118: electricity, medium voltage, at grid/kWh/CH U | J118: light fuel oil, burned in industrial furnace 1MW, non-modulating/MJ/CH U | K118: Diesel, burned in building machine/GLO U | L118: Natural gas, burned in boiler condensing modulating >100kW/RER U | M118: Transport, lorry 20-28t, fleet average/CH U | N118: Transport, freight, rail/RER U | O118: Transport, transoceanic freight ship/OCE U | P118: Transport, tractor and trailer/CH U | Q118: biogas, vented/CH U | R118: methane, 96 vol-%, purification and distribution/kWh/CH U | S118: wood chips combustion, burned in furnace/MJ/CH U | T118: wood chips combustion, burned in cogen 6400kWth/MJ/CH U | U118: wood chips combustion, burned in cogen ORC 1400kWth/MJ/CH U | V118: wood chips, gasified in cogen, fixed bed/MJ/KWM U | W118: wood chips, in fluidized bed gasification, with biomethane production/MJ/KWM U | X118: emission, gasification/m3/KWM U | Y118: emission, NOx/kg/CH U | Z118: emission, PM2.5/kg/CH U | AA118: emission, lead/kg/CH U | AB118: emission, cadmium/kg/CH U | AC118: emission, zinc/kg/CH U | AD118: transport, district heat network, average/CH/I U | AE118: disposal, wood ash mixture, pure, 0% water, to municipal incineration/kg/CH U | AF118: Disposal, inert waste, 5% water, to inert material landfill/CH U | AG118: disposal, filter dust, wood, to residual material landfill/CH U | AH118: Disposal, hazardous waste, 0% water, to underground deposit/DE U | AI118: Disposal, wood ash mixture, pure, 0% water, to landfarming/CH U
A119: IPCC GWP 100a | B119: kg CO2 eq | C119: 5.8387721 | D119: 5.5629664 | E119: 3.1319558 | F119: 76.349905 | G119: 4.8789094 | H119: 2950.3508 | I119: 0.10006507 | J119: 0.35143109 | K119: 0.3694638 | L119: 0.29077822 | M119: 0.21062323 | N119: 0.040307164 | O119: 0.011909972 | P119: 0.31196265 | Q119: 1.9884818 | R119: 0.0017928 | S119: 0.0034456117 | T119: 0.002944989 | U119: 0.0036729679 | V119: 0.0032160296 | W119: 0.006451106 | X119: 0.0034265207 | Y119: 0 | Z119: 0 | AA119: 0 | AB119: 0 | AC119: 0 | AD119: 0.0023231639 | AE119: 22.473794 | AF119: 8.299326 | AG119: 34.475658 | AH119: 185.79686 | AI119: 1.2947744
A120: IPCC GWP 100a | B120: kg CO2 eq | C120: 5.3815696 | D120: 5.2149712 | E120: 2.885371 | F120: 95.001892 | G120: 4.4942538 | H120: 2325.6411 | I120: 0.12231567 | J120: 0.3161735 | K120: 0.3275745 | L120: 0.24585672 | M120: 0.19252106 | N120: 0.037303157 | O120: 0.010529761 | P120: 0.30231928 | Q120: 1.576454 | R120: 0.044425307 | S120: 0.0036857659 | T120: 0.0031564789 | U120: 0.003786326 | V120: 0.002916723 | W120: 0.0059570665 | X120: 0.0031363596 | Y120: 0 | Z120: 0 | AA120: 0 | AB120: 0 | AC120: 0 | AD120: 0.0025531967 | AE120: 22.216926 | AF120: 7.0452517 | AG120: 33.581523 | AH120: 178.28671 | AI120: 1.1958507
A122: Calculation: | B122: Compare
A123: Results: | B123: Impact assessment
A124: Product 1: | B124: 1 m3 Wood chips, hardwood, u=80%, at forest/RER U (of project ESU database 2019)
A125: Product 2: | B125: 1 m3 Wood chips, softwood, u=140%, at forest/RER U (of project ESU database 2019)
A126: Product 3: | B126: 1 m3 Wood chips, mixed, from industry, u=40%, at plant/RER U (of project ESU database 2019)
A127: Product 4: | B127: 1 m3 Wood pellets, u=10%, at storehouse/RER U (of project ESU database 2019)
A128: Product 5: | B128: 1 m3 Waste wood chips, mixed, from industry, u=40%, at plant/CH U (of project ESU database 2019)
A129: Product 6: | B129: 1000 kg Rape methyl ester, at regional storage/CH U (of project ESU database 2019)
A130: Product 7: | B130: 1 kWh electricity, medium voltage, at grid/kWh/CH U (of project ESU database 2019)
A131: Product 8: | B131: 3.6 MJ light fuel oil, burned in industrial furnace 1MW, non-modulating/MJ/CH U (of project ESU database 2019)
A132: Product 9: | B132: 3.6 MJ Diesel, burned in building machine/GLO U (of project ESU database 2019)
A133: Product 10: | B133: 3.6 MJ Natural gas, burned in boiler condensing modulating >100kW/RER U (of project ESU database 2019)
A134: Product 11: | B134: 1 tkm Transport, lorry 20-28t, fleet average/CH U (of project ESU database 2019)
A135: Product 12: | B135: 1 tkm Transport, freight, rail/RER U (of project ESU database 2019)
A136: Product 13: | B136: 1 tkm Transport, transoceanic freight ship/OCE U (of project ESU database 2019)
A137: Product 14: | B137: 1 tkm Transport, tractor and trailer/CH U (of project ESU database 2019)
A138: Product 15: | B138: 1 kWh biogas, vented/CH U (of project 208 naturemade KWM)
A139: Product 16: | B139: 1 kWh methane, 96 vol-%, purification and distribution/kWh/CH U (of project 208 naturemade KWM)
A140: Product 17: | B140: 1 kWh wood chips combustion, burned in furnace/MJ/CH U (of project 208 naturemade KWM)
A141: Product 18: | B141: 1 kWh wood chips combustion, burned in cogen 6400kWth/MJ/CH U (of project 208 naturemade KWM)
A142: Product 19: | B142: 1 kWh wood chips combustion, burned in cogen ORC 1400kWth/MJ/CH U (of project 208 naturemade KWM)
A143: Product 20: | B143: 1 kWh wood chips, gasified in cogen, fixed bed/MJ/KWM U (of project 208 naturemade KWM)
A144: Product 21: | B144: 1 kWh wood chips, in fluidized bed gasification, with biomethane production/MJ/KWM U (of project 208 naturemade KWM)
A145: Product 22: | B145: 1 m3 emission, gasification/m3/KWM U (of project 208 naturemade KWM)
A146: Product 23: | B146: 1 kg emission, NOx/kg/CH U (of project 208 naturemade KWM)
A147: Product 24: | B147: 1 kg emission, PM2.5/kg/CH U (of project 208 naturemade KWM)
A148: Product 25: | B148: 1 kg emission, lead/kg/CH U (of project 208 naturemade KWM)
A149: Product 26: | B149: 1 kg emission, cadmium/kg/CH U (of project 208 naturemade KWM)
A150: Product 27: | B150: 1 kg emission, zinc/kg/CH U (of project 208 naturemade KWM)
A151: Product 28: | B151: 1 kWh transport, district heat network, average/CH/I U (of project 208 naturemade KWM)
A152: Product 29: | B152: 1000 kg disposal, wood ash mixture, pure, 0% water, to municipal incineration/kg/CH U (of project ESU database 2019)
A153: Product 30: | B153: 1000 kg Disposal, inert waste, 5% water, to inert material landfill/CH U (of project ESU database 2019)
A154: Product 31: | B154: 1 ton disposal, filter dust, wood, to residual material landfill/CH U (of project 208 naturemade KWM)
A155: Product 32: | B155: 1000 kg Disposal, hazardous waste, 0% water, to underground deposit/DE U (of project ESU database 2019)
A156: Product 33: | B156: 1000 kg Disposal, wood ash mixture, pure, 0% water, to landfarming/CH U (of project ESU database 2019)
A157: Method: | B157: Cumulative Energy Demand, differenziert V1.04 / CED, non-renewable
A158: Indicator: | B158: Single score
A159: Skip categories: | B159: With result = 0
A160: Default units: | B160: Yes
A161: Exclude infrastructure processes: | B161: No
A162: Exclude long-term emissions: | B162: No
A163: Sorted on item: | B163: Impact category
A164: Sort order: | B164: Ascending
A166: Impact category | B166: Unit | C166: Wood chips, hardwood, u=80%, at forest/RER U | D166: Wood chips, softwood, u=140%, at forest/RER U | E166: Wood chips, mixed, from industry, u=40%, at plant/RER U | F166: Wood pellets, u=10%, at storehouse/RER U | G166: Waste wood chips, mixed, from industry, u=40%, at plant/CH U | H166: Rape methyl ester, at regional storage/CH U | I166: electricity, medium voltage, at grid/kWh/CH U | J166: light fuel oil, burned in industrial furnace 1MW, non-modulating/MJ/CH U | K166: Diesel, burned in building machine/GLO U | L166: Natural gas, burned in boiler condensing modulating >100kW/RER U | M166: Transport, lorry 20-28t, fleet average/CH U | N166: Transport, freight, rail/RER U | O166: Transport, transoceanic freight ship/OCE U | P166: Transport, tractor and trailer/CH U | Q166: biogas, vented/CH U | R166: methane, 96 vol-%, purification and distribution/kWh/CH U | S166: wood chips combustion, burned in furnace/MJ/CH U | T166: wood chips combustion, burned in cogen 6400kWth/MJ/CH U | U166: wood chips combustion, burned in cogen ORC 1400kWth/MJ/CH U | V166: wood chips, gasified in cogen, fixed bed/MJ/KWM U | W166: wood chips, in fluidized bed gasification, with biomethane production/MJ/KWM U | X166: emission, gasification/m3/KWM U | Y166: emission, NOx/kg/CH U | Z166: emission, PM2.5/kg/CH U | AA166: emission, lead/kg/CH U | AB166: emission, cadmium/kg/CH U | AC166: emission, zinc/kg/CH U | AD166: transport, district heat network, average/CH/I U | AE166: disposal, wood ash mixture, pure, 0% water, to municipal incineration/kg/CH U | AF166: Disposal, inert waste, 5% water, to inert material landfill/CH U | AG166: disposal, filter dust, wood, to residual material landfill/CH U | AH166: Disposal, hazardous waste, 0% water, to underground deposit/DE U | AI166: Disposal, wood ash mixture, pure, 0% water, to landfarming/CH U
A167: Total | B167: MJ | C167: 89.737092 | D167: 87.197652 | E167: 56.89 | F167: 1411.2125 | G167: 82.831786 | H167: 24862.699 | I167: 8.5752348 | J167: 4.8248894 | K167: 5.0808019 | L167: 4.595664 | M167: 3.2671202 | N167: 0.68727862 | O167: 0.16732973 | P167: 4.8039608 | Q167: 0 | R167: 0.012260288 | S167: 0.010584147 | T167: 0.0097390522 | U167: 0.022280114 | V167: 0.032378752 | W167: 0.11329497 | X167: 0 | Y167: 0 | Z167: 0 | AA167: 0 | AB167: 0 | AC167: 0 | AD167: 0.1210212 | AE167: 432.43804 | AF167: 199.36283 | AG167: 219.93826 | AH167: 2824.813 | AI167: 19.630457
A168: Non renewable, fossil | B168: MJ | C168: 81.171767 | D168: 77.562983 | E168: 39.675469 | F168: 1016.7414 | G168: 66.30115 | H168: 20735.851 | I168: 1.2030872 | J168: 4.7169012 | K168: 4.9526777 | L168: 4.5355028 | M168: 3.0887412 | N168: 0.49923074 | O168: 0.1544026 | P168: 4.1951603 | Q168: 0 | R168: 0.011624455 | S168: 0.0085743929 | T168: 0.0087912867 | U168: 0.020634497 | V168: 0.029733488 | W168: 0.082560899 | X168: 0 | Y168: 0 | Z168: 0 | AA168: 0 | AB168: 0 | AC168: 0 | AD168: 0.027018089 | AE168: 408.27059 | AF168: 190.89111 | AG168: 186.23522 | AH168: 2637.6616 | AI168: 17.789853
A169: Non-renewable, nuclear | B169: MJ | C169: 8.4000809 | D169: 9.4946376 | E169: 17.190355 | F169: 394.06759 | G169: 16.522099 | H169: 4124.0618 | I169: 7.3720432 | J169: 0.10779902 | K169: 0.11442363 | L169: 0.059817209 | M169: 0.17786097 | N169: 0.1876521 | O169: 0.012919164 | P169: 0.60824871 | Q169: 0 | R169: 0.00063193008 | S169: 0.0020072082 | T169: 0.00094355915 | U169: 0.0016397719 | V169: 0.0026040397 | W169: 0.030716573 | X169: 0 | Y169: 0 | Z169: 0 | AA169: 0 | AB169: 0 | AC169: 0 | AD169: 0.09399625 | AE169: 23.988502 | AF169: 8.3364976 | AG169: 33.657478 | AH169: 186.8455 | AI169: 1.8379864
A170: Non-renewable, land transformation | B170: MJ | C170: 0.16524425 | D170: 0.14003152 | E170: 0.024176348 | F170: 0.4034813 | G170: 0.0085373402 | H170: 2.7854406 | I170: 0.00010440088 | J170: 0.00018914519 | K170: 0.013700552 | L170: 0.00034390811 | M170: 0.00051793971 | N170: 0.00039578016 | O170: 7.970566e-06 | P170: 0.00055185098 | Q170: 0 | R170: 3.9033796e-06 | S170: 2.5460332e-06 | T170: 4.2064149e-06 | U170: 5.8445434e-06 | V170: 4.1224295e-05 | W170: 1.7497172e-05 | X170: 0 | Y170: 0 | Z170: 0 | AA170: 0 | AB170: 0 | AC170: 0 | AD170: 6.8630375e-06 | AE170: 0.17894076 | AF170: 0.1352208 | AG170: 0.045562598 | AH170: 0.30590793 | AI170: 0.0026175928
A171: Total | B171: MJ | C171: 88.004528 | D171: 86.210636 | E171: 55.130293 | F171: 1868.0571 | G171: 80.652977 | H171: 23723.041 | I171: 8.7182899 | J171: 4.6040695 | K171: 4.8782641 | L171: 4.285354 | M171: 3.1951897 | N171: 0.66760932 | O171: 0.16229988 | P171: 4.8042225 | Q171: 0 | R171: 0.011581746 | S171: 0.010519279 | T171: 0.0094431872 | U171: 0.021387005 | V171: 0.031497769 | W171: 0.11011559 | X171: 0 | Y171: 0 | Z171: 0 | AA171: 0 | AB171: 0 | AC171: 0 | AD171: 0.1226098 | AE171: 444.4434 | AF171: 195.49026 | AG171: 220.27778 | AH171: 2796.9619 | AI171: 19.157645
A174: Calculation: | B174: Compare
A175: Results: | B175: Impact assessment
A176: Product 1: | B176: 1 m3 Wood chips, hardwood, u=80%, at forest/RER U (of project ESU database 2019)
A177: Product 2: | B177: 1 m3 Wood chips, softwood, u=140%, at forest/RER U (of project ESU database 2019)
A178: Product 3: | B178: 1 m3 Wood chips, mixed, from industry, u=40%, at plant/RER U (of project ESU database 2019)
A179: Product 4: | B179: 1 m3 Wood pellets, u=10%, at storehouse/RER U (of project ESU database 2019)
A180: Product 5: | B180: 1 m3 Waste wood chips, mixed, from industry, u=40%, at plant/CH U (of project ESU database 2019)
A181: Product 6: | B181: 1000 kg Rape methyl ester, at regional storage/CH U (of project ESU database 2019)
A182: Product 7: | B182: 1 kWh electricity, medium voltage, at grid/kWh/CH U (of project ESU database 2019)
A183: Product 8: | B183: 3.6 MJ light fuel oil, burned in industrial furnace 1MW, non-modulating/MJ/CH U (of project ESU database 2019)
A184: Product 9: | B184: 3.6 MJ Diesel, burned in building machine/GLO U (of project ESU database 2019)
A185: Product 10: | B185: 3.6 MJ Natural gas, burned in boiler condensing modulating >100kW/RER U (of project ESU database 2019)
A186: Product 11: | B186: 1 tkm Transport, lorry 20-28t, fleet average/CH U (of project ESU database 2019)
A187: Product 12: | B187: 1 tkm Transport, freight, rail/RER U (of project ESU database 2019)
A188: Product 13: | B188: 1 tkm Transport, transoceanic freight ship/OCE U (of project ESU database 2019)
A189: Product 14: | B189: 1 tkm Transport, tractor and trailer/CH U (of project ESU database 2019)
A190: Product 15: | B190: 1 kWh biogas, vented/CH U (of project 208 naturemade KWM)
A191: Product 16: | B191: 1 kWh methane, 96 vol-%, purification and distribution/kWh/CH U (of project 208 naturemade KWM)
A192: Product 17: | B192: 1 kWh wood chips combustion, burned in furnace/MJ/CH U (of project 208 naturemade KWM)
A193: Product 18: | B193: 1 kWh wood chips combustion, burned in cogen 6400kWth/MJ/CH U (of project 208 naturemade KWM)
A194: Product 19: | B194: 1 kWh wood chips combustion, burned in cogen ORC 1400kWth/MJ/CH U (of project 208 naturemade KWM)
A195: Product 20: | B195: 1 kWh wood chips, gasified in cogen, fixed bed/MJ/KWM U (of project 208 naturemade KWM)
A196: Product 21: | B196: 1 kWh wood chips, in fluidized bed gasification, with biomethane production/MJ/KWM U (of project 208 naturemade KWM)
A197: Product 22: | B197: 1 m3 emission, gasification/m3/KWM U (of project 208 naturemade KWM)
A198: Product 23: | B198: 1 kg emission, NOx/kg/CH U (of project 208 naturemade KWM)
A199: Product 24: | B199: 1 kg emission, PM2.5/kg/CH U (of project 208 naturemade KWM)
A200: Product 25: | B200: 1 kg emission, lead/kg/CH U (of project 208 naturemade KWM)
A201: Product 26: | B201: 1 kg emission, cadmium/kg/CH U (of project 208 naturemade KWM)
A202: Product 27: | B202: 1 kg emission, zinc/kg/CH U (of project 208 naturemade KWM)
A203: Product 28: | B203: 1 kWh transport, district heat network, average/CH/I U (of project 208 naturemade KWM)
A204: Product 29: | B204: 1000 kg disposal, wood ash mixture, pure, 0% water, to municipal incineration/kg/CH U (of project ESU database 2019)
A205: Product 30: | B205: 1000 kg Disposal, inert waste, 5% water, to inert material landfill/CH U (of project ESU database 2019)
A206: Product 31: | B206: 1 ton disposal, filter dust, wood, to residual material landfill/CH U (of project 208 naturemade KWM)
A207: Product 32: | B207: 1000 kg Disposal, hazardous waste, 0% water, to underground deposit/DE U (of project ESU database 2019)
A208: Product 33: | B208: 1000 kg Disposal, wood ash mixture, pure, 0% water, to landfarming/CH U (of project ESU database 2019)
A209: Method: | B209: Ecological Scarcity 2013, categories, res. cor. V1.03 / Ecological scarcity 2013
... 29 more rows

Sheet Prüfwert (hidden)
A1: Referenz | C1: 53 | D1: 52 | E1: 51 | F1: 91 | G1: 88 | J1: 54 | K1: 90 | L1: 101 | N1: 89 | O1: 63
C2: =INDEX(menues!$1:$1048576,C1,sprache) -> Grenzwert Methan | D2: =INDEX(menues!$1:$1048576,D1,sprache) -> Grenzwert Wärme | E2: =INDEX(menues!$1:$1048576,E1,sprache) -> Grenzwert Strom | F2: =INDEX(menues!$1:$1048576,F1,sprache) -> Grenzwert Kälte | G2: =INDEX(menues!$1:$1048576,G1,sprache) -> Referenz Güllelager | J2: =INDEX(menues!$1:$1048576,J1,sprache) -> Referenz Entsorgung | K2: =INDEX(menues!$1:$1048576,K1,sprache) -> Referenz Frischklärschlamm | L2: =INDEX(menues!$1:$1048576,L1,sprache) -> 0 | N2: =INDEX(menues!$1:$1048576,N1,sprache) -> Referenz Kompost | O2: =INDEX(menues!$1:$1048576,O1,sprache) -> Referenz direkte Emissionen
A3: Zeile | C3: 16 | D3: 62 | E3: 14
A4: Eingabe 1 | C4: =INDEX(Prüfung!$1:$1048576,MATCH(C$3,Prüfung!$A:$A,0),3) -> 0 | D4: =INDEX(Prüfung!$1:$1048576,MATCH(D$3,Prüfung!$A:$A,0),3) -> 0 | E4: =INDEX(Prüfung!$1:$1048576,MATCH(E$3,Prüfung!$A:$A,0),3) -> 0
A5: Eingabe 2 | D5: =INDEX(Prüfung!$1:$1048576,MATCH(D$3,Prüfung!$A:$A,0),4) -> 0 | E5: =INDEX(Prüfung!$1:$1048576,MATCH(E$3,Prüfung!$A:$A,0),4) -> 0
A6: Eingabe 3 | D6: =INDEX(Prüfung!$1:$1048576,MATCH(D$3,Prüfung!$A:$A,0),5) ->  | E6: =INDEX(Prüfung!$1:$1048576,MATCH(E$3,Prüfung!$A:$A,0),5) -> 
A7: Eingabe 4 | D7: =INDEX(Prüfung!$1:$1048576,MATCH(D$3,Prüfung!$A:$A,0),6) -> 0 | E7: =INDEX(Prüfung!$1:$1048576,MATCH(E$3,Prüfung!$A:$A,0),6) -> 0
A8: Umrechnungsfaktor | C8: =C4 -> 0 | D8: =D4 -> 0 | E8: =E4 -> 0
A9: Direkte Emissionen
A10: Eco-indicator | B10: =SUM(C10:K10) -> 0 | C10: =C8*C45+C9 -> 0 | D10: =D8*D45 -> 0 | E10: =E8*E45+E9 -> 0 | F10: =F8*F45+F9 -> 0
A17: Calculation: | B17: Compare
A18: Results: | B18: Impact assessment
A19: Product 1: | B19: 1 kWh threshold value, methane/kWh/CH U (of project 208 naturemade KWM)
A20: Product 2: | B20: 1 kWh threshold value, methane/kWh/CH U (of project 208 naturemade KWM)
A21: Product 3: | B21: 1 kWh threshold value, heat/kWh/CH U (of project 208 naturemade KWM)
A22: Product 4: | B22: 1 kWh threshold value, electricity/kWh/CH U (of project 208 naturemade KWM)
A23: Product 5: | B23: 1 kWh threshold value, cooling/kWh/CH U (of project 208 naturemade KWM)
A24: Product 6: | B24: 1 kg reference value, manure/kg/CH U (of project 208 naturemade KWM)
A25: Product 7: | B25: 1 kg reference value, digested matter, solid/kg/CH U (of project 208 naturemade KWM)
A26: Product 8: | B26: 1 kg reference value, digested matter, liquid/kg/CH U (of project 208 naturemade KWM)
A27: Product 9: | B27: 1 CHF reference value, co-substrate disposal/CHF/CH U (of project 208 naturemade KWM)
A28: Product 10: | B28: 1 kg reference value, raw sewage sludge treatment/kg/CH U (of project 208 naturemade KWM)
A29: Product 11: | B29: 1 kg reference value, fuel from digester sludge/kg/CH U (of project 208 naturemade KWM)
A30: Product 12: | B30: 1 kg reference value, manure/kg/DE U (of project 208 naturemade KWM)
A31: Product 13: | B31: 1 kg reference value, manure/kg/HU U (of project 208 naturemade KWM)
A32: Product 14: | B32: 1 kg reference value, manure/kg/DK U (of project 208 naturemade KWM)
A33: Product 15: | B33: 1 m3 reference value, paper production effluent/kg/CH U (of project 208 naturemade KWM)
A34: Method: | B34: Eco-indicator 99 (H) V2.10 / Europe EI 99 H/A
A35: Indicator: | B35: Single score
A36: Skip categories: | B36: Never
A37: Default units: | B37: Yes
A38: Exclude infrastructure processes: | B38: No
A39: Exclude long-term emissions: | B39: Yes
A40: Per impact category: | B40: No
A41: Sorted on item: | B41: Damage category
A42: Sort order: | B42: Ascending
A44: Damage category | B44: Unit | C44: threshold value, methane/kWh/CH U | D44: threshold value, methane/kWh/CH U | E44: threshold value, heat/kWh/CH U | F44: threshold value, electricity/kWh/CH U | G44: threshold value, cooling/kWh/CH U | H44: reference value, manure/kg/CH U | I44: reference value, digested matter, solid/kg/CH U | J44: reference value, digested matter, liquid/kg/CH U | K44: reference value, co-substrate disposal/CHF/CH U | L44: reference value, raw sewage sludge treatment/kg/CH U | M44: reference value, fuel from digester sludge/kg/CH U | N44: reference value, manure/kg/DE U | O44: reference value, manure/kg/HU U | P44: reference value, manure/kg/DK U | Q44: reference value, paper production effluent/kg/CH U
A45: Total | B45: Pt | C45: 0.010615247 | D45: 0.010615247 | E45: 0.010254166 | F45: 0.018939705 | G45: 0.0026524348 | H45: 2.9690546e-06 | I45: 0.0011745254 | J45: 0.0002786703 | K45: 0.043643034 | L45: 0.0075140369 | M45: 0.030687888 | N45: 1.0349682e-05 | O45: 1.1160245e-05 | P45: 7.7693312e-06 | Q45: 0.07389457
A46: Human Health | B46: Pt | C46: 0.0023865811 | D46: 0.0023865811 | E46: 0.0023069626 | F46: 0.0045706603 | G46: 0.0015038921 | H46: 2.0504768e-06 | I46: 0.0007936679 | J46: 0.00018830727 | K46: 0.029491124 | L46: 0.0052972372 | M46: 0.0073315352 | N46: 7.6195541e-06 | O46: 8.0482512e-06 | P46: 5.1036221e-06 | Q46: 0.043378513
A47: Ecosystem Quality | B47: Pt | C47: 0.00021494347 | D47: 0.00021494347 | E47: 0.00018386393 | F47: 0.00041381049 | G47: 0.00040447279 | H47: 3.5667302e-07 | I47: 0.00013529079 | J47: 3.2099369e-05 | K47: 0.0050271372 | L47: 0.00037705867 | M47: 0.00064040968 | N47: 8.8438827e-07 | O47: 7.5358139e-07 | P47: 1.0103324e-06 | Q47: 0.0064220085
A48: Resources | B48: Pt | C48: 0.0080137227 | D48: 0.0080137227 | E48: 0.007763339 | F48: 0.013955235 | G48: 0.00074406995 | H48: 5.619048e-07 | I48: 0.00024556676 | J48: 5.826367e-05 | K48: 0.0091247733 | L48: 0.001839741 | M48: 0.022715943 | N48: 1.8457393e-06 | O48: 2.3584127e-06 | P48: 1.6553766e-06 | Q48: 0.024094048
A50: Summe | B50: Pt | C50: 0.0077681508 | D50: 0.0076644577 | E50: 0.013690576 | F50: 0.001352665 | G50: 3.5528622e-06 | H50: 0.0008007699 | I50: 0.0001899923 | J50: 0.02975502 | K50: 0.0010822236 | L50: 0.022402034
C51: =C50=C45 -> FALSE | D51: =D50=D45 -> FALSE | E51: FALSE | F51: FALSE | G51: FALSE | H51: FALSE | I51: FALSE | J51: FALSE | K51: FALSE | L51: FALSE
C52: =C50-C45 -> -0.0028470962 | D52: =D50-D45 -> -0.0029507893 | E52: 0.00343641 | F52: -0.01758704 | G52: -0.002648881938 | H52: 0.0007978008454 | I52: -0.0009845331 | J52: 0.0294763497 | K52: -0.0425608104 | L52: 0.0148879971
B55: System processes
A57: Calculation: | B57: Compare
A58: Results: | B58: Impact assessment
A59: Product 1: | B59: 1 kWh threshold value, methane/kWh/CH U (of project 208 naturemade KWM)
A60: Product 2: | B60: 1 kWh threshold value, heat/kWh/CH U (of project 208 naturemade KWM)
A61: Product 3: | B61: 1 kWh threshold value, electricity/kWh/CH U (of project 208 naturemade KWM)
A62: Product 4: | B62: 1 kWh threshold value, cooling/kWh/CH U (of project 208 naturemade KWM)
A63: Product 5: | B63: 1 kg reference value, manure/kg/CH U (of project 208 naturemade KWM)
A64: Product 6: | B64: 1 kg reference value, digested matter, solid/kg/CH U (of project 208 naturemade KWM)
A65: Product 7: | B65: 1 kg reference value, digested matter, liquid/kg/CH U (of project 208 naturemade KWM)
A66: Product 8: | B66: 1 CHF reference value, co-substrate disposal/CHF/CH U (of project 208 naturemade KWM)
A67: Product 9: | B67: 1 kg reference value, raw sewage sludge treatment/kg/CH U (of project 208 naturemade KWM)
A68: Product 10: | B68: 1 kg reference value, fuel from digester sludge/kg/CH U (of project 208 naturemade KWM)
A69: Method: | B69: Eco-indicator 99 (H) V2.09 / Europe EI 99 H/A
A70: Indicator: | B70: Single score
A71: Unit: | B71: mPt
A72: Skip categories: | B72: With result = 0
A73: Exclude infrastructure processes: | B73: No
A74: Exclude long-term emissions: | B74: Yes
A75: Per impact category: | B75: No
A76: Sorted on item: | B76: Damage category
A77: Sort order: | B77: Ascending
A79: Damage category | B79: Unit | C79: threshold value, methane/kWh/CH U | D79: threshold value, heat/kWh/CH U | E79: threshold value, electricity/kWh/CH U | F79: threshold value, cooling/kWh/CH U | G79: reference value, manure/kg/CH U | H79: reference value, digested matter, solid/kg/CH U | I79: reference value, digested matter, liquid/kg/CH U | J79: reference value, co-substrate disposal/CHF/CH U | K79: reference value, raw sewage sludge treatment/kg/CH U | L79: reference value, fuel from digester sludge/kg/CH U
A80: Total | B80: Pt | C80: 0.0091910369 | D80: 0.009105163 | E80: 0.016310958 | F80: 0.0029897765 | G80: 4.8660291e-06 | H80: 0.0011496123 | I80: 0.00027275937 | J80: 0.042717312 | K80: 0.001586525 | L80: 0.026689257
A81: Human Health | B81: Pt | C81: 0.001517755 | D81: 0.0016061415 | E81: 0.003007265 | F81: 0.0017473018 | G81: 2.8140084e-06 | H81: 0.00078969139 | I81: 0.00018736379 | J81: 0.029343365 | K81: 0.0011067161 | L81: 0.0048997589
A82: Ecosystem Quality | B82: Pt | C82: 4.9443672e-05 | D82: 6.0404166e-05 | E82: 0.00012300207 | F82: 0.00040843235 | G82: 4.8902129e-07 | H82: 0.00011646702 | I82: 2.7633203e-05 | J82: 0.0043276833 | K82: 9.214177e-05 | L82: 0.00017081122
A83: Resources | B83: Pt | C83: 0.0076238382 | D83: 0.0074386174 | E83: 0.013180691 | F83: 0.00083404239 | G83: 1.5629993e-06 | H83: 0.00024345392 | I83: 5.7762374e-05 | J83: 0.0090462645 | K83: 0.00038766713 | L83: 0.021618687
